Workbook

Sheet AGG Income Summ 2022WIP
C2: AviaGlobal Group, LLC (AGG) Income CY 2022
C4: =C7+C9 -> 34107.67 | D4: Total 2022 Income Received by AGG
C5: Amt | D5: Client | E5: Invoice | F5: Description
C6: AGG Client Consulting Services Income
C7: ='PARA Inv Recon 28DEC22WIP'!D38 -> 31000 | D7: Peregrine Avionics | F7: AGG Monthy Retainer Services
C8: AGG Client Expense Reimburement Income
C9: ='PARA Inv Recon 28DEC22WIP'!D39 -> 3107.67 | D9: Peregrine Avionics | F9: WWW & Business Dvpt Services
D10: Total 2022 Income Retainer & Reimbursement for AGG expenses incurred on behalf clients

Sheet PARA Inv Recon 28DEC22WIP
B1: Inv Month 2022 | C1: Description | D1: Inv Number | E1: Amount | F1: AGG Inv & Sent Date | G1: Due Date | H1: Posted AGG BofA
B3: Dec 2021 | C3: WWW Support | D3: 030-21 | E3: 1500 | F3: 2021-12-15 | G3: 2022-01-01
D4: Payment | E4: 1500 | H4: 2022-02-18
B5: Jan | C5: WWW Support | D5: 001-22 | E5: 1500 | F5: 2022-01-15 | G5: 2022-02-01
D6: Payment | E6: 1500 | H6: 2022-01-24
B7: Feb | C7: WWW Support/ Enhanced | D7: 002-22 | E7: 3000 | F7: 2022-02-15 | G7: 2022-03-01
C8: Expenses | D8: 003-22 | E8: 850 | F8: 2022-02-21 | G8: 2022-03-01 | I8: JETNET
D9: Payment | E9: 3850 | H9: 2022-03-17
B10: Mar | C10: WWW Support/ Enhanced | D10: 004-22 | E10: 3000 | F10: 2022-03-15 | G10: 2022-04-01
C11: Expenses | D11: 005-22 | E11: 106.69 | F11: 2022-03-15 | G11: 2022-03-15 | I11: Mailchimp
C12: Expenses | D12: 006-22 | E12: 450.41 | F12: 2022-03-23 | G12: 2022-03-23 | I12: Mailing
D13: Payment | E13: 3557.1 | H13: 2022-04-20
B14: Apr | C14: WWW Support/ Enhanced | D14: 007-22 | E14: 3000 | F14: 2022-04-18 | G14: 2022-05-01
D15: Payment | E15: 3000 | H15: 2022-07-08
B16: May | C16: WWW Support/ Enhanced | D16: 008-22 | E16: 3000 | F16: 2022-05-26 | G16: 2022-06-01
D17: Payment | E17: 3000 | H17: 2022-08-08
B18: Jun | C18: WWW Support/ Enhanced | D18: 009-22 | E18: 3000 | F18: 2022-06-16 | G18: 2022-07-01
B19: Jul | C19: WWW Support/ Enhanced | D19: 010-22 | E19: 3000 | F19: 2022-07-15 | G19: 2022-08-01
C20: Expenses | D20: 011-22 | E20: 194.99 | F20: 2022-07-15 | G20: 2022-07-15 | I20: Mailcimp, images
D21: Payment | E21: 3194.99 | H21: 2022-08-31
D22: Payment | E22: 3000 | H22: 2022-09-14
B23: Aug | C23: WWW Support | D23: 012-22 | E23: 2000 | F23: 2022-09-01 | G23: 2022-09-01
D24: Payment | E24: 2000 | H24: 2022-11-02
B25: Sep | C25: WWW Support | D25: 013-22 | E25: 2000 | F25: 2022-10-01 | G25: 2022-10-01
E26: 2000 | H26: 2022-12-09
B27: Oct | C27: WWW Support | D27: 014-22 | E27: 2000 | F27: 2022-11-01 | G27: 2022-11-01
C28: Expenses (New ER) | D28: 015-22 | E28: 236 | F28: 2022-11-10 | G28: 2022-11-10 | I28: Mailchimp
B29: Nov | C29: WWW Support | D29: 016-22 | E29: 2000 | F29: 2022-12-02 | G29: 2022-12-01
C30: Expenses (New LRC ER) | D30: 017-22 | E30: 59 | F30: 2022-12-02 | G30: 2022-12-02 | I30: Mailchimp
C31: Expenses (New FWC ER) | D31: 018-22 | E31: 768.61 | F31: 2022-12-02 | G31: 2022-12-02
B32: Dec | C32: WWW Support | D32: 019-22 | E32: 2000 | F32: 2022-12-15 | G32: 2023-01-01
D33: Payment | E33: 7063.61 | H33: 2022-12-21
C34: Expenses (New FWC ER) | D34: 020-22 | E34: 441.97 | F34: 2022-12-26
C37: Totals CY2022 | D37: =D38+D39 -> 34107.67 | E37: =SUM(E33,E26,E24,E22,E21,E17,E15,E13,E9,E6,E4) -> 33665.7 | F37: =D37-E37 -> 441.97
C38: WWW Support | D38: =SUM(E3,E5,E7,E10,E14,E16,E18,E19,E23,E25,E27,E29,E32) -> 31000
C39: Expense Reimbursement | D39: =SUM(E8,E11,E12,E20,E28,E30,E31,E34) -> 3107.67

Sheet AGG MemDistr CY2022
B2: AviaGlobal Group, LLC (AGG) Member Distributions CY 2022
B4: =B19 -> 24000 | D4: Total 2021 Income Distribution to AGG Memebers
B5: Amount | C5: Member Sum | D5: Member | E5: Distr Date | F5: Description
B6: 2000 | D6: Aero Business Dvpt | E6: 2022-04-22 | F6: ACH Bank Transfer
B7: 2700 | D7: Aero Business Dvpt | E7: 2022-09-01 | F7: ACH Bank Transfer
B8: 3300 | D8: Aero Business Dvpt | E8: 2022-12-22 | F8: ACH Bank Transfer
C9: =SUM(B6:B9) -> 8000 | D9: Aero Business Dvpt | F9: ACH Bank Transfer
B10: 2000 | D10: ADS-B Global | E10: 2022-04-22 | F10: ACH Bank Transfer
B11: 2700 | D11: ADS-B Global | E11: 2022-09-01 | F11: ACH Bank Transfer
B12: 3300 | D12: ADS-B Global | E12: 2022-12-22 | F12: ACH Bank Transfer
C13: =SUM(B10:B13) -> 8000 | D13: ADS-B Global | F13: ACH Bank Transfer
B14: 2000 | D14: Forrest W. Colliver | E14: 2022-04-22 | F14: ACH Bank Transfer
B15: 2700 | D15: Forrest W. Colliver | E15: 2022-09-01 | F15: ACH Bank Transfer
B16: 3300 | D16: Forrest W. Colliver | E16: 2022-12-22 | F16: ACH Bank Transfer
C17: =SUM(B14:B17) -> 8000 | D17: Forrest W. Colliver | F17: ACH Bank Transfer
B19: =SUM(B6:B18) -> 24000 | C19: =C9+C13+C17 -> 24000 | D19: Total 2022 AGG Member Distribution

Sheet AGG BofA Credits CY2022
A2: Description | B2: Bank of America/ AviaGlobal Group LLC - Tax/Calendar Year 2022 Summary
A4: Date | B4: Revenue Summary By Payee (Credits) | C4: Total Amount | D4: Client Services Fee | E4: Client Exp Reimbursment | F4: Ref AGG Revenue Catagories
A6: 01/24/2022 | B6: PEREGRINE AVIONI DES:QUICKBOOKS ID:375020979 INDN:AVIAGLOBAL GROUP, LLC CO ID:1722616653 PPD | C6: 1500 | D6: =C6 -> 1500 | F6: WWW Support Services
A7: 02/18/2022 | B7: PEREGRINE AVIONI DES:QUICKBOOKS ID:375020979 INDN:AVIAGLOBAL GROUP, LLC CO ID:1722616653 PPD | C7: 1500 | D7: =C7 -> 1500 | F7: WWW Support Services
A8: 03/17/2022 | B8: PEREGRINE AVIONI DES:QUICKBOOKS ID:375020979 INDN:AVIAGLOBAL GROUP, LLC CO ID:1722616653 PPD | C8: 3850 | D8: 3000 | E8: 850 | F8: WWW Support Services + Expenses
A9: 04/20/2022 | B9: PEREGRINE AVIONI DES:QUICKBOOKS ID:375020979 INDN:AVIAGLOBAL GROUP, LLC CO ID:1722616653 PPD | C9: 3557.1 | D9: 3000 | E9: 557.1 | F9: WWW Support Services
A10: 2022-08-07 | B10: PEREGRINE AVIONI DES:QUICKBOOKS ID:375020979 INDN:AVIAGLOBAL GROUP, LLC CO ID:1722616653 PPD | C10: 3000 | D10: =C10 -> 3000 | F10: WWW Support Services
A11: 2022-08-08 | B11: PEREGRINE AVIONI DES:QUICKBOOKS ID:375020979 INDN:AVIAGLOBAL GROUP, LLC CO ID:1722616653 PPD | C11: 3000 | D11: =C11 -> 3000 | F11: WWW Support Services
A12: 08/31/2022 | B12: PEREGRINE AVIONI DES:QUICKBOOKS ID:375020979 INDN:AVIAGLOBAL GROUP, LLC CO ID:1722616653 PPD | C12: 3194.99 | D12: 3000 | E12: 194.99 | F12: WWW Support Services + Expenses
A13: 09/14/2022 | B13: PEREGRINE AVIONI DES:QUICKBOOKS ID:375020979 INDN:AVIAGLOBAL GROUP, LLC CO ID:1722616653 PPD | C13: 3000 | D13: =C13 -> 3000 | F13: WWW Support Services
A14: 2022-02-11 | B14: PEREGRINE AVIONI DES:QUICKBOOKS ID:375020979 INDN:AVIAGLOBAL GROUP, LLC CO ID:1722616653 PPD | C14: 2000 | D14: =C14 -> 2000 | F14: WWW Support Services
A15: 2022-09-12 | B15: PEREGRINE AVIONI DES:QUICKBOOKS ID:375020979 INDN:AVIAGLOBAL GROUP, LLC CO ID:1722616653 PPD | C15: 2000 | D15: 2000 | F15: WWW Support Services
A16: 12/20/2022 | B16: PEREGRINE AVIONI DES:QUICKBOOKS ID:375020979 INDN:AVIAGLOBAL GROUP, LLC CO ID:1722616653 PPD | C16: 7063.61 | D16: 6000 | E16: 1063.61 | F16: WWW Support Services + Expenses
B17: Totals CY2022 | C17: =SUM(C6:C16) -> 33665.7 | D17: =SUM(D6:D16) -> 31000 | E17: 2665.7
C18: =D17+E17 -> 33665.7

Sheet AGG BofA DebitsCat CY 2022
A2: Description | B2: Bank of America/ AviaGlobal Group LLC - Tax/Calendar Year 2021 Summary | C2: Summary Amt.
A3: Beginning balance as of 01/01/2021 | C3: 3729.68
A4: Total credits | C4: 80973.51
A5: Total debits | C5: -84039.48
A6: Ending balance as of 12/31/2021 | C6: 663.71
A8: Date | B8: Expense Summary By Catagory (Debits) | C8: Amount | D8: Cat Ttl | E8: Category | F8: Comments
A10: 2022-03-01 | B10: INTERNATIONAL TRANSACTION FEE 01/02 OWL FOR THUNDERBI WIESBADEN DEBIT CARD *7429 | C10: -0.34 | E10: BofA Intl Fees
A11: 01/25/2022 | B11: INTERNATIONAL TRANSACTION FEE 01/24 REALLY-SIMPLE-SSL GRONINGEN DEBIT CARD *7429 | C11: -0.7 | E11: BofA Intl Fees
A12: 01/24/2022 | B12: INTERNATIONAL TRANSACTION FEE 01/24 SOFTACULOUS ABU DHABI DEBIT CARD *7429 | C12: -0.72 | E12: BofA Intl Fees
A13: 01/26/2022 | B13: INTERNATIONAL TRANSACTION FEE 01/25 BLS*Single Card 972547584908 DEBIT CARD *7411 | C13: -0.21 | E13: BofA Intl Fees
A14: 01/25/2022 | B14: INTERNATIONAL TRANSACTION FEE 01/25 COMPLIANZ-GDPR-PR GRONINGEN DEBIT CARD *7429 | C14: -1.35 | E14: BofA Intl Fees
A15: 06/21/2022 | B15: INTERNATIONAL TRANSACTION FEE 06/20 COMPLIANZ-GDPR-PR GRONINGEN DEBIT CARD *7429 | C15: -1.35 | E15: BofA Intl Fees
A16: 06/21/2022 | B16: INTERNATIONAL TRANSACTION FEE 06/20 REALLY-SIMPLE-SSL GRONINGEN DEBIT CARD *7429 | C16: -0.7 | E16: BofA Intl Fees
A17: 2022-06-10 | B17: INTERNATIONAL TRANSACTION FEE 10/06 DOWNLOAD-MONITOR. BUCURESTI DEBIT CARD *7429 | C17: -4.77 | E17: BofA Intl Fees
A18: 03/16/2022 | B18: External transfer fee - 3 Day - 03/15/2022 Confirmation: 379444042 | C18: -1 | E18: BofA Ext Transfer Fees
A19: 03/24/2022 | B19: External transfer fee - 3 Day - 03/23/2022 Confirmation: 380466874 | C19: -1 | E19: BofA Ext Transfer Fees
A20: 04/25/2022 | B20: External transfer fee - 3 Day - 04/22/2022 Confirmation: 384618918 | C20: -1 | E20: BofA Ext Transfer Fees
A21: 04/25/2022 | B21: External transfer fee - 3 Day - 04/22/2022 Confirmation: 384619226 | C21: -1 | E21: BofA Ext Transfer Fees
A22: 2022-08-09 | B22: External transfer fee - 3 Day - 09/07/2022 Confirmation: 403675046 | C22: -1 | E22: BofA Ext Transfer Fees
A23: 2022-08-09 | B23: External transfer fee - 3 Day - 09/07/2022 Confirmation: 403675426 | C23: -1 | E23: BofA Ext Transfer Fees
A24: 12/23/2022 | B24: External transfer fee - 3 Day - 12/22/2022 Confirmation: 418383038 | C24: -1 | E24: BofA Ext Transfer Fees
A25: 12/23/2022 | B25: External transfer fee - 3 Day - 12/22/2022 Confirmation: 418383332 | C25: -1 | E25: BofA Ext Transfer Fees
A26: 12/27/2022 | B26: External transfer fee - 3 Day - 12/23/2022 Confirmation: 418577030 | C26: -1 | E26: BofA Ext Transfer Fees
A27: 12/27/2022 | B27: External transfer fee - Next Day - 12/23/2022 Confirmation: 418570494 | C27: -5 | E27: BofA Ext Transfer Fees
A28: 2022-03-01 | B28: Monthly Fee Business Adv Relationship | C28: -29.95 | E28: BofA Service Fee
A29: 2022-01-02 | B29: Monthly Fee Business Adv Relationship | C29: -29.95 | E29: BofA Service Fee
A30: 2022-01-03 | B30: Monthly Fee Business Adv Relationship | C30: -29.95 | E30: BofA Service Fee
A31: 2022-01-04 | B31: Monthly Fee Business Adv Relationship | C31: -29.95 | E31: BofA Service Fee
A32: 2022-02-05 | B32: Monthly Fee Business Adv Relationship | C32: -29.95 | E32: BofA Service Fee
A33: 2022-01-06 | B33: Monthly Fee Business Adv Relationship | C33: -29.95 | E33: BofA Service Fee
A34: 2022-01-07 | B34: Monthly Fee Business Adv Relationship | C34: -29.95 | E34: BofA Service Fee
A35: 2022-01-08 | B35: Monthly Fee Business Adv Relationship | C35: -29.95 | E35: BofA Service Fee
A36: 2022-01-09 | B36: Monthly Fee Business Adv Relationship | C36: -29.95 | E36: BofA Service Fee
A37: 2022-03-10 | B37: Monthly Fee Business Adv Relationship | C37: -29.95 | E37: BofA Service Fee
A38: 2022-01-11 | B38: Monthly Fee Business Adv Relationship | C38: -29.95 | E38: BofA Service Fee
A39: 2022-01-12 | B39: Monthly Fee Business Adv Relationship | C39: -29.95 | D39: =SUM(C10:C39) -> -383.54 | E39: BofA Service Fee
A40: 2022-03-01 | B40: OWL FOR THUNDERBI 01/02 PURCHASE WIESBADEN DEBIT CARD *7429 | C40: -11.38 | E40: Data Services
A41: 03/15/2022 | B41: Amazon.com*1N91P5 03/14 PURCHASE Amzn.com/bill WA DEBIT CARD *7411 | C41: -66.66 | E41: Data Services
A42: 03/18/2022 | B42: AMZN Mktp US*1N5B 03/17 PURCHASE Amzn.com/bill WA DEBIT CARD *7411 | C42: -29.63 | E42: Data Services
A43: 01/26/2022 | B43: BLS*Single Card 01/25 PURCHASE 972547584908 DEBIT CARD *7411 | C43: -6.99 | E43: Data Services
A44: 01/25/2022 | B44: COMPLIANZ-GDPR-PR 01/25 PURCHASE GRONINGEN DEBIT CARD *7429 | C44: -45 | E44: Data Services
A45: 06/21/2022 | B45: COMPLIANZ-GDPR-PR 06/20 PURCHASE GRONINGEN DEBIT CARD *7429 | C45: -45 | E45: Data Services
A46: 2022-06-06 | B46: DMARCIAN* DMARCIA 06/04 PURCHASE BREVARD NC DEBIT CARD *7429 | C46: -239.88 | E46: Data Services
A47: 2022-06-10 | B47: DOWNLOAD-MONITOR. 10/06 PURCHASE BUCURESTI DEBIT CARD *7429 | C47: -159 | E47: Data Services
A48: 2022-08-06 | B48: DREAMSTIME.COM 06/07 PURCHASE BRENTWOOD TN DEBIT CARD *7411 | C48: -1 | E48: Data Services
A49: 2022-08-06 | B49: DREAMSTIME.COM 06/07 PURCHASE BRENTWOOD TN DEBIT CARD *7411 | C49: -16.99 | E49: Data Services
A50: 01/24/2022 | B50: ELEMENTOR 01/24 PURCHASE WILMINGTON DE DEBIT CARD *7429 | C50: -49 | E50: Data Services
A51: 06/21/2022 | B51: ELEMENTOR 06/20 PURCHASE WILMINGTON DE DEBIT CARD *7429 | C51: -49 | E51: Data Services
A52: 2022-08-04 | B52: EVERMAP COMPANY L 04/05 PURCHASE CORVALLIS OR DEBIT CARD *0975 | C52: -149 | E52: Data Services
A53: 04/13/2022 | B53: EVERMAP COMPANY L 04/05 PURCHASE CORVALLIS OR DEBIT CARD *7411 | C53: -149 | E53: Data Services
A54: 2022-07-02 | B54: INMOTIONHOSTING.C 02/06 PURCHASE 888-3214678 CA DEBIT CARD *7429 | C54: -37.18 | E54: Data Services
A55: 11/21/2022 | B55: INMOTIONHOSTING.C 11/20 PURCHASE 888-3214678 CA DEBIT CARD *7429 | C55: -119.99 | E55: Data Services
A56: 11/28/2022 | B56: INMOTIONHOSTING.C 11/25 PURCHASE 888-3214678 CA DEBIT CARD *7429 | C56: -479.85 | E56: Data Services
A57: 12/19/2022 | B57: INMOTIONHOSTING.C 12/16 PURCHASE 888-3214678 CA DEBIT CARD *7429 | C57: -39.58 | E57: Data Services
A58: 02/14/2022 | B58: JET NET 02/10 PURCHASE 315-797-4420 NY DEBIT CARD *7411 | C58: -850 | E58: Data Services
A59: 01/19/2022 | B59: MAILCHIMP *MISC 01/18 PURCHASE MAILCHIMP.COM GA DEBIT CARD *7411 | C59: -9.49 | E59: Data Services
A60: 02/22/2022 | B60: MAILCHIMP *MISC 02/18 PURCHASE MAILCHIMP.COM GA DEBIT CARD *7411 | C60: -11.62 | E60: Data Services
A61: 03/21/2022 | B61: MAILCHIMP *MISC 03/18 PURCHASE MAILCHIMP.COM GA DEBIT CARD *7411 | C61: -11.62 | E61: Data Services
A62: 04/19/2022 | B62: MAILCHIMP *MISC 04/18 PURCHASE MAILCHIMP.COM GA DEBIT CARD *7411 | C62: -11.62 | E62: Data Services
A63: 05/19/2022 | B63: MAILCHIMP *MISC 05/18 PURCHASE MAILCHIMP.COM GA DEBIT CARD *7411 | C63: -11.62 | E63: Data Services
A64: 06/21/2022 | B64: MAILCHIMP *MISC 06/18 PURCHASE MAILCHIMP.COM GA DEBIT CARD *7411 | C64: -11.62 | E64: Data Services
A65: 07/19/2022 | B65: MAILCHIMP *MISC 07/18 PURCHASE MAILCHIMP.COM GA DEBIT CARD *7411 | C65: -11.62 | E65: Data Services
A66: 08/19/2022 | B66: MAILCHIMP *MISC 08/18 PURCHASE MAILCHIMP.COM GA DEBIT CARD *7411 | C66: -11.62 | E66: Data Services
A67: 09/19/2022 | B67: MAILCHIMP *MISC 09/18 PURCHASE MAILCHIMP.COM GA DEBIT CARD *7411 | C67: -11.62 | E67: Data Services
A68: 10/19/2022 | B68: MAILCHIMP *MISC 10/18 PURCHASE MAILCHIMP.COM GA DEBIT CARD *7411 | C68: -11.62 | E68: Data Services
A69: 11/21/2022 | B69: MAILCHIMP *MISC 11/18 PURCHASE MAILCHIMP.COM GA DEBIT CARD *7411 | C69: -11.62 | E69: Data Services
A70: 12/19/2022 | B70: MAILCHIMP *MISC 12/18 PURCHASE MAILCHIMP.COM GA DEBIT CARD *7411 | C70: -11.62 | E70: Data Services
A71: 01/20/2022 | B71: MailChimp 01/20 PURCHASE Atlanta GA DEBIT CARD *7411 | C71: -47.69 | E71: Data Services
A72: 02/22/2022 | B72: MailChimp 02/20 PURCHASE Atlanta GA DEBIT CARD *7411 | C72: -59 | E72: Data Services
A73: 03/21/2022 | B73: MailChimp 03/20 PURCHASE Atlanta GA DEBIT CARD *7411 | C73: -59 | E73: Data Services
A74: 04/20/2022 | B74: MailChimp 04/20 PURCHASE Atlanta GA DEBIT CARD *7411 | C74: -59 | E74: Data Services
A75: 05/20/2022 | B75: MailChimp 05/20 PURCHASE Atlanta GA DEBIT CARD *7411 | C75: -59 | E75: Data Services
A76: 06/21/2022 | B76: MailChimp 06/20 PURCHASE Atlanta GA DEBIT CARD *7411 | C76: -59 | E76: Data Services
A77: 07/20/2022 | B77: MailChimp 07/20 PURCHASE Atlanta GA DEBIT CARD *7411 | C77: -59 | E77: Data Services
A78: 08/22/2022 | B78: MailChimp 08/20 PURCHASE Atlanta GA DEBIT CARD *7411 | C78: -59 | E78: Data Services
A79: 09/20/2022 | B79: MailChimp 09/20 PURCHASE Atlanta GA DEBIT CARD *7411 | C79: -59 | E79: Data Services
A80: 10/20/2022 | B80: MailChimp 10/20 PURCHASE Atlanta GA DEBIT CARD *7411 | C80: -59 | E80: Data Services
A81: 11/21/2022 | B81: MailChimp 11/20 PURCHASE Atlanta GA DEBIT CARD *7411 | C81: -59 | E81: Data Services
A82: 12/20/2022 | B82: MailChimp 12/20 PURCHASE Atlanta GA DEBIT CARD *7411 | C82: -59 | E82: Data Services
A83: 01/25/2022 | B83: REALLY-SIMPLE-SSL 01/24 PURCHASE GRONINGEN DEBIT CARD *7429 | C83: -23.2 | E83: Data Services
A84: 06/21/2022 | B84: REALLY-SIMPLE-SSL 06/20 PURCHASE GRONINGEN DEBIT CARD *7429 | C84: -23.2 | E84: Data Services
A85: 03/16/2022 | B85: MONSTERINSIGHTS W 03/16 PURCHASE PALM BEACH GA FL DEBIT CARD *7429 | C85: -199 | E85: Data Services
A86: 03/16/2022 | B86: SEMPER PLUGINS AI 03/16 PURCHASE PALM BEACH GA FL DEBIT CARD *7429 | C86: -99 | E86: Data Services
A87: 01/24/2022 | B87: SOFTACULOUS 01/24 PURCHASE ABU DHABI DEBIT CARD *7429 | C87: -24 | D87: =SUM(C40:C87) -> -3746.53 | E87: Data Services | F87: See Additional "Data Services" in non-AGG credit card list, below
A88: 03/29/2022 | B88: MICHAEL L STUCK C 03/28 PURCHASE SCOTTSDALE AZ DEBIT CARD *0975 | C88: -575 | E88: Accounting Services
A89: 03/31/2022 | B89: NATIONAL BUS AVIA 03/31 PURCHASE WASHINGTON DC DEBIT CARD *7411 | C89: -750 | E89: Industry Association Membership Dues
A90: 10/31/2022 | B90: NATIONAL BUS AVIA 10/28 PURCHASE WASHINGTON DC DEBIT CARD *7411 | C90: -52.5 | E90: Industry Association Membership Dues
A91: 2022-01-09 | B91: HELICOPTER ASSOCI 08/31 PURCHASE 7036834646 VA DEBIT CARD *7429 | C91: -325 | E91: Industry Association Membership Dues
A92: 2022-01-08 | B92: SAE INTERNATIONAL 07/30 PURCHASE 7247764841 PA DEBIT CARD *7411 | C92: -120 | D92: =SUM(C88:C92) -> -1822.5 | E92: Industry Association Membership Dues | F92: See Additlonal "Industry Membership Dues" in non-AGG credit card list, below
A93: 03/15/2022 | B93: STAMPS.COM 03/14 PURCHASE 855-608-2677 CA DEBIT CARD *7411 | C93: -19.19 | E93: Postage
A94: 03/15/2022 | B94: STAMPS.COM 03/14 PURCHASE 855-608-2677 CA DEBIT CARD *7411 | C94: -30.12 | E94: Postage
A95: 04/14/2022 | B95: STAMPS.COM 04/14 PURCHASE 855-608-2677 CA DEBIT CARD *7411 | C95: -17.99 | E95: Postage
A96: 05/16/2022 | B96: STAMPS.COM 05/14 PURCHASE 855-608-2677 CA DEBIT CARD *7411 | C96: -17.99 | E96: Postage
A97: 06/14/2022 | B97: STAMPS.COM 06/14 PURCHASE 855-608-2677 CA DEBIT CARD *7411 | C97: -17.99 | E97: Postage
A98: 07/14/2022 | B98: STAMPS.COM 07/14 PURCHASE 855-608-2677 CA DEBIT CARD *7411 | C98: -17.99 | E98: Postage
A99: 08/15/2022 | B99: STAMPS.COM 08/14 PURCHASE 855-608-2677 CA DEBIT CARD *7411 | C99: -17.99 | E99: Postage
A100: 09/14/2022 | B100: STAMPS.COM 09/14 PURCHASE 855-608-2677 CA DEBIT CARD *7411 | C100: -17.99 | E100: Postage
A101: 10/17/2022 | B101: STAMPS.COM 10/14 PURCHASE 855-608-2677 CA DEBIT CARD *7411 | C101: -17.99 | E101: Postage
A102: 11/14/2022 | B102: STAMPS.COM 11/13 PURCHASE 855-608-2677 TX DEBIT CARD *7411 | C102: -17.99 | E102: Postage
A103: 12/14/2022 | B103: STAMPS.COM 12/13 PURCHASE 855-608-2677 TX DEBIT CARD *7411 | C103: -17.99 | E103: Postage
A104: 03/18/2022 | B104: USPS STAMPS ENDIC 03/17 PURCHASE 888-434-0055 DC DEBIT CARD *7411 | C104: -50 | E104: Postage
A105: 03/18/2022 | B105: USPS STAMPS ENDIC 03/17 PURCHASE 888-434-0055 DC DEBIT CARD *7411 | C105: -100 | E105: Postage
A106: 03/24/2022 | B106: USPS STAMPS ENDIC 03/23 PURCHASE 888-434-0055 DC DEBIT CARD *7411 | C106: -25 | D106: =SUM(C93:C106) -> -386.22 | E106: Postage
A107: 03/23/2022 | B107: TRANSFER AVIAGLOBAL GROUP, LL:ADS-B Global LLC Confirmation# 0107351744 | C107: -96.55 | E107: Expense Reimbursement | F107: Non-AGG Credit Card Expenses (See reconciliation, below)
A108: 2022-07-09 | B108: TRANSFER AVIAGLOBAL GROUP, LL:ADS-B Global LLC Confirmation# 0156760934 | C108: -2700 | E108: Member Disburesment
A109: 12/22/2022 | B109: TRANSFER AVIAGLOBAL GROUP, LL:ADS-B Global LLC Confirmation# 0273896038 | C109: -3300 | E109: Member Disburesment
A110: 12/23/2022 | B110: TRANSFER AVIAGLOBAL GROUP, LL:ADS-B Global LLC Confirmation# 1581367783 | C110: -70.62 | E110: Expense Reimbursement | F110: Non-AGG Credit Card Expenses (See reconciliation, below)
A111: 03/15/2022 | B111: TRANSFER AVIAGLOBAL GROUP, LL:ADS-B Global LLC Confirmation# 1737069000 | C111: -74.1 | E111: Expense Reimbursement | F111: Non-AGG Credit Card Expenses (See reconciliation, below)
A112: 04/22/2022 | B112: TRANSFER AVIAGLOBAL GROUP, LL:ADS-B Global LLC Confirmation# 1763915441 | C112: -2000 | E112: Member Disburesment
A113: 12/22/2022 | B113: TRANSFER AVIAGLOBAL GROUP, LL:Forrest Colliver Confirmation# 0273906671 | C113: -3300 | E113: Member Disburesment
A114: 12/23/2022 | B114: TRANSFER AVIAGLOBAL GROUP, LL:Forrest Colliver Confirmation# 0281150631 | C114: -1549.3 | E114: Expense Reimbursement | F114: Non-AGG Credit Card Expenses (See reconciliation, below)
A115: 04/22/2022 | B115: TRANSFER AVIAGLOBAL GROUP, LL:Forrest Colliver Confirmation# 0663925416 | C115: -2000 | E115: Member Disburesment
A116: 2022-07-09 | B116: TRANSFER AVIAGLOBAL GROUP, LL:Forrest Colliver Confirmation# 1556772007 | C116: -2700 | E116: Member Disburesment
A117: 12/22/2022 | B117: Online Banking Transfer Conf# fr8bmzdeg; AERO BUSINESS DEVELOPEMENT LLC | C117: -3300 | E117: Member Disburesment
A118: 2022-07-09 | B118: Online Banking Transfer Conf# itu1b5i02; AERO BUSINESS DEVELOPEMENT LLC | C118: -2700 | E118: Member Disburesment
A119: 04/22/2022 | B119: Online Banking Transfer Conf# iuvu5ty24; AERO BUSINESS DEVELOPEMENT LLC | C119: -2000 | D119: =SUM(C107:C119) -> -25790.57 | E119: Member Disburesment
B121: Non-AGG Credit Card Expenses Reconciliation | E121: Reference Expense Report
A122: 03/23/2022 | B122: TRANSFER AVIAGLOBAL GROUP, LL:ADS-B Global LLC Confirmation# 0107351744 | C122: -96.55 | E122: 220323 LRC ADS-BG AGG Billable 08-2022
A123: 2022-03-17 | B123: Planelogger Premium | C123: 6.55 | E123: Data Services
A124: 2022-03-18 | B124: Brochure Printing | C124: 90 | D124: =SUM(C123:C124) -> 96.55 | E124: Printing Services
A126: 12/23/2022 | B126: TRANSFER AVIAGLOBAL GROUP, LL:ADS-B Global LLC Confirmation# 1581367783 | C126: -70.62 | E126: 221220 LRC ADS_BG Billable 15-2022
A127: 2022-07-17 | B127: Planelogger Premium | C127: 5.94 | E127: Data Services
A128: 2022-08-17 | B128: Planelogger Premium | C128: 6.06 | E128: Data Services
A129: 2022-09-17 | B129: Planelogger Premium | C129: 5.77 | E129: Data Services
A130: 2022-10-06 | B130: Flightradar Subscription | C130: 34.99 | E130: Data Services
A131: 2022-10-17 | B131: Planelogger Premium | C131: 5.66 | E131: Data Services
A132: 2022-11-17 | B132: Planelogger Premium | C132: 6.01 | E132: Data Services
A133: 2022-12-17 | B133: Planelogger Premium | C133: 6.19 | D133: =SUM(C127:C133) -> 70.62 | E133: Data Services
A135: 03/15/2022 | B135: TRANSFER AVIAGLOBAL GROUP, LL:ADS-B Global LLC Confirmation# 1737069000 | C135: -74.1 | E135: 22310 LRC ADS-BG ER AGG Billable 052022
A136: 2022-01-04 | B136: OWL thunderbird Extension | C136: 11.33 | E136: Data Services
A137: 2022-01-04 | B137: VISA International | C137: 0.11 | E137: Data Services
A138: 2022-01-17 | B138: Planelogger Premium | C138: 6.87 | E138: Data Services
A139: 2022-02-17 | B139: Planelogger Premium | C139: 6.79 | E139: Data Services
A140: 2022-03-04 | B140: Shutterstock CS-081BD-2486 | C140: 49 | D140: =SUM(C136:C140) -> 74.1 | E140: Data Services
A142: 12/23/2022 | B142: TRANSFER AVIAGLOBAL GROUP, LL:Forrest Colliver Confirmation# 0281150631 | C142: -1549.3 | E142: FWC ANGS ER 01-2022
A143: 2022-12-21 | B143: EUROCAE 2023 Due for AGG | C143: 1075.27 | E143: Industry Association Membership Dues
A144: 2022-12-21 | B144: AGG Inmotion Hosting 27 Jan 2023 - 26 Jan 2024 (50% of AeroNextGen VPS Invoice) | C144: 453.54 | E144: Data Services
A145: 2022-12-21 | B145: Exchange Fees - Inmotionhosting transaction | C145: 20.49 | D145: =SUM(C143:C145) -> 1549.3 | E145: Data Services

Sheet AGG BofA TransByDate CY2022
A2: Description | B2: Bank of America/ AviaGlobal Group LLC - Tax/Calendar Year 2022 Summary | C2: Summary Amt.
A3: Beginning balance as of 01/01/2022 | C3: 663.71
A4: Total credits | C4: 33665.7 | D4: =SUM(C15,C28,C39,C55,C79,C85,C89,C97,C109,C116,C120) -> 33665.7
A5: Total debits | C5: -32129.36 | D5: =SUM(C10:C130)-D4 -> -32129.36
A6: Ending balance as of 12/28/2022 | C6: 2200.05
A8: Date | B8: Description | C8: Amount | D8: Running Bal.
A9: 2022-01-01 | B9: Beginning balance as of 01/01/2022 | D9: 663.71
A10: 2022-03-01 | B10: OWL FOR THUNDERBI 01/02 PURCHASE WIESBADEN DEBIT CARD *7429 | C10: -11.38 | D10: 652.33
A11: 2022-03-01 | B11: Monthly Fee Business Adv Relationship | C11: -29.95 | D11: 622.38
A12: 2022-03-01 | B12: INTERNATIONAL TRANSACTION FEE 01/02 OWL FOR THUNDERBI WIESBADEN DEBIT CARD *7429 | C12: -0.34 | D12: 622.04
A13: 01/19/2022 | B13: MAILCHIMP *MISC 01/18 PURCHASE MAILCHIMP.COM GA DEBIT CARD *7411 | C13: -9.49 | D13: 612.55
A14: 01/20/2022 | B14: MailChimp 01/20 PURCHASE Atlanta GA DEBIT CARD *7411 | C14: -47.69 | D14: 564.86
A15: 01/24/2022 | B15: PEREGRINE AVIONI DES:QUICKBOOKS ID:375020979 INDN:AVIAGLOBAL GROUP, LLC CO ID:1722616653 PPD | C15: 1500 | D15: 2064.86
A16: 01/24/2022 | B16: SOFTACULOUS 01/24 PURCHASE ABU DHABI DEBIT CARD *7429 | C16: -24 | D16: 2040.86
A17: 01/24/2022 | B17: ELEMENTOR 01/24 PURCHASE WILMINGTON DE DEBIT CARD *7429 | C17: -49 | D17: 1991.86
A18: 01/24/2022 | B18: INTERNATIONAL TRANSACTION FEE 01/24 SOFTACULOUS ABU DHABI DEBIT CARD *7429 | C18: -0.72 | D18: 1991.14
A19: 01/25/2022 | B19: REALLY-SIMPLE-SSL 01/24 PURCHASE GRONINGEN DEBIT CARD *7429 | C19: -23.2 | D19: 1967.94
A20: 01/25/2022 | B20: COMPLIANZ-GDPR-PR 01/25 PURCHASE GRONINGEN DEBIT CARD *7429 | C20: -45 | D20: 1922.94
A21: 01/25/2022 | B21: INTERNATIONAL TRANSACTION FEE 01/25 COMPLIANZ-GDPR-PR GRONINGEN DEBIT CARD *7429 | C21: -1.35 | D21: 1921.59
A22: 01/25/2022 | B22: INTERNATIONAL TRANSACTION FEE 01/24 REALLY-SIMPLE-SSL GRONINGEN DEBIT CARD *7429 | C22: -0.7 | D22: 1920.89
A23: 01/26/2022 | B23: BLS*Single Card 01/25 PURCHASE 972547584908 DEBIT CARD *7411 | C23: -6.99 | D23: 1913.9
A24: 01/26/2022 | B24: INTERNATIONAL TRANSACTION FEE 01/25 BLS*Single Card 972547584908 DEBIT CARD *7411 | C24: -0.21 | D24: 1913.69
A25: 2022-01-02 | B25: Monthly Fee Business Adv Relationship | C25: -29.95 | D25: 1883.74
A26: 2022-07-02 | B26: INMOTIONHOSTING.C 02/06 PURCHASE 888-3214678 CA DEBIT CARD *7429 | C26: -37.18 | D26: 1846.56
A27: 02/14/2022 | B27: JET NET 02/10 PURCHASE 315-797-4420 NY DEBIT CARD *7411 | C27: -850 | D27: 996.56
A28: 02/18/2022 | B28: PEREGRINE AVIONI DES:QUICKBOOKS ID:375020979 INDN:AVIAGLOBAL GROUP, LLC CO ID:1722616653 PPD | C28: 1500 | D28: 2496.56
A29: 02/22/2022 | B29: MAILCHIMP *MISC 02/18 PURCHASE MAILCHIMP.COM GA DEBIT CARD *7411 | C29: -11.62 | D29: 2484.94
A30: 02/22/2022 | B30: MailChimp 02/20 PURCHASE Atlanta GA DEBIT CARD *7411 | C30: -59 | D30: 2425.94
A31: 2022-01-03 | B31: Monthly Fee Business Adv Relationship | C31: -29.95 | D31: 2395.99
A32: 03/15/2022 | B32: STAMPS.COM 03/14 PURCHASE 855-608-2677 CA DEBIT CARD *7411 | C32: -19.19 | D32: 2376.8
A33: 03/15/2022 | B33: STAMPS.COM 03/14 PURCHASE 855-608-2677 CA DEBIT CARD *7411 | C33: -30.12 | D33: 2346.68
A34: 03/15/2022 | B34: Amazon.com*1N91P5 03/14 PURCHASE Amzn.com/bill WA DEBIT CARD *7411 | C34: -66.66 | D34: 2280.02
A35: 03/15/2022 | B35: TRANSFER AVIAGLOBAL GROUP, LL:ADS-B Global LLC Confirmation# 1737069000 | C35: -74.1 | D35: 2205.92
A36: 03/16/2022 | B36: MONSTERINSIGHTS W 03/16 PURCHASE PALM BEACH GA FL DEBIT CARD *7429 | C36: -199 | D36: 2006.92
A37: 03/16/2022 | B37: SEMPER PLUGINS AI 03/16 PURCHASE PALM BEACH GA FL DEBIT CARD *7429 | C37: -99 | D37: 1907.92
A38: 03/16/2022 | B38: External transfer fee - 3 Day - 03/15/2022 Confirmation: 379444042 | C38: -1 | D38: 1906.92
A39: 03/17/2022 | B39: PEREGRINE AVIONI DES:QUICKBOOKS ID:375020979 INDN:AVIAGLOBAL GROUP, LLC CO ID:1722616653 PPD | C39: 3850 | D39: 5756.92
A40: 03/18/2022 | B40: USPS STAMPS ENDIC 03/17 PURCHASE 888-434-0055 DC DEBIT CARD *7411 | C40: -50 | D40: 5706.92
A41: 03/18/2022 | B41: USPS STAMPS ENDIC 03/17 PURCHASE 888-434-0055 DC DEBIT CARD *7411 | C41: -100 | D41: 5606.92
A42: 03/18/2022 | B42: AMZN Mktp US*1N5B 03/17 PURCHASE Amzn.com/bill WA DEBIT CARD *7411 | C42: -29.63 | D42: 5577.29
A43: 03/21/2022 | B43: MAILCHIMP *MISC 03/18 PURCHASE MAILCHIMP.COM GA DEBIT CARD *7411 | C43: -11.62 | D43: 5565.67
A44: 03/21/2022 | B44: MailChimp 03/20 PURCHASE Atlanta GA DEBIT CARD *7411 | C44: -59 | D44: 5506.67
A45: 03/23/2022 | B45: TRANSFER AVIAGLOBAL GROUP, LL:ADS-B Global LLC Confirmation# 0107351744 | C45: -96.55 | D45: 5410.12
A46: 03/24/2022 | B46: USPS STAMPS ENDIC 03/23 PURCHASE 888-434-0055 DC DEBIT CARD *7411 | C46: -25 | D46: 5385.12
A47: 03/24/2022 | B47: External transfer fee - 3 Day - 03/23/2022 Confirmation: 380466874 | C47: -1 | D47: 5384.12
A48: 03/29/2022 | B48: MICHAEL L STUCK C 03/28 PURCHASE SCOTTSDALE AZ DEBIT CARD *0975 | C48: -575 | D48: 4809.12
A49: 03/31/2022 | B49: NATIONAL BUS AVIA 03/31 PURCHASE WASHINGTON DC DEBIT CARD *7411 | C49: -750 | D49: 4059.12
A50: 2022-01-04 | B50: Monthly Fee Business Adv Relationship | C50: -29.95 | D50: 4029.17
A51: 2022-08-04 | B51: EVERMAP COMPANY L 04/05 PURCHASE CORVALLIS OR DEBIT CARD *0975 | C51: -149 | D51: 3880.17
A52: 04/13/2022 | B52: EVERMAP COMPANY L 04/05 PURCHASE CORVALLIS OR DEBIT CARD *7411 | C52: -149 | D52: 3731.17
A53: 04/14/2022 | B53: STAMPS.COM 04/14 PURCHASE 855-608-2677 CA DEBIT CARD *7411 | C53: -17.99 | D53: 3713.18
A54: 04/19/2022 | B54: MAILCHIMP *MISC 04/18 PURCHASE MAILCHIMP.COM GA DEBIT CARD *7411 | C54: -11.62 | D54: 3701.56
A55: 04/20/2022 | B55: PEREGRINE AVIONI DES:QUICKBOOKS ID:375020979 INDN:AVIAGLOBAL GROUP, LLC CO ID:1722616653 PPD | C55: 3557.1 | D55: 7258.66
A56: 04/20/2022 | B56: MailChimp 04/20 PURCHASE Atlanta GA DEBIT CARD *7411 | C56: -59 | D56: 7199.66
A57: 04/22/2022 | B57: TRANSFER AVIAGLOBAL GROUP, LL:ADS-B Global LLC Confirmation# 1763915441 | C57: -2000 | D57: 5199.66
A58: 04/22/2022 | B58: TRANSFER AVIAGLOBAL GROUP, LL:Forrest Colliver Confirmation# 0663925416 | C58: -2000 | D58: 3199.66
A59: 04/22/2022 | B59: Online Banking Transfer Conf# iuvu5ty24; AERO BUSINESS DEVELOPEMENT LLC | C59: -2000 | D59: 1199.66
A60: 04/25/2022 | B60: External transfer fee - 3 Day - 04/22/2022 Confirmation: 384618918 | C60: -1 | D60: 1198.66
A61: 04/25/2022 | B61: External transfer fee - 3 Day - 04/22/2022 Confirmation: 384619226 | C61: -1 | D61: 1197.66
A62: 2022-02-05 | B62: Monthly Fee Business Adv Relationship | C62: -29.95 | D62: 1167.71
A63: 05/16/2022 | B63: STAMPS.COM 05/14 PURCHASE 855-608-2677 CA DEBIT CARD *7411 | C63: -17.99 | D63: 1149.72
A64: 05/19/2022 | B64: MAILCHIMP *MISC 05/18 PURCHASE MAILCHIMP.COM GA DEBIT CARD *7411 | C64: -11.62 | D64: 1138.1
A65: 05/20/2022 | B65: MailChimp 05/20 PURCHASE Atlanta GA DEBIT CARD *7411 | C65: -59 | D65: 1079.1
A66: 2022-01-06 | B66: Monthly Fee Business Adv Relationship | C66: -29.95 | D66: 1049.15
A67: 2022-06-06 | B67: DMARCIAN* DMARCIA 06/04 PURCHASE BREVARD NC DEBIT CARD *7429 | C67: -239.88 | D67: 809.27
A68: 2022-08-06 | B68: DREAMSTIME.COM 06/07 PURCHASE BRENTWOOD TN DEBIT CARD *7411 | C68: -1 | D68: 808.27
A69: 2022-08-06 | B69: DREAMSTIME.COM 06/07 PURCHASE BRENTWOOD TN DEBIT CARD *7411 | C69: -16.99 | D69: 791.28
A70: 06/14/2022 | B70: STAMPS.COM 06/14 PURCHASE 855-608-2677 CA DEBIT CARD *7411 | C70: -17.99 | D70: 773.29
A71: 06/21/2022 | B71: MAILCHIMP *MISC 06/18 PURCHASE MAILCHIMP.COM GA DEBIT CARD *7411 | C71: -11.62 | D71: 761.67
A72: 06/21/2022 | B72: MailChimp 06/20 PURCHASE Atlanta GA DEBIT CARD *7411 | C72: -59 | D72: 702.67
A73: 06/21/2022 | B73: ELEMENTOR 06/20 PURCHASE WILMINGTON DE DEBIT CARD *7429 | C73: -49 | D73: 653.67
A74: 06/21/2022 | B74: REALLY-SIMPLE-SSL 06/20 PURCHASE GRONINGEN DEBIT CARD *7429 | C74: -23.2 | D74: 630.47
A75: 06/21/2022 | B75: COMPLIANZ-GDPR-PR 06/20 PURCHASE GRONINGEN DEBIT CARD *7429 | C75: -45 | D75: 585.47
A76: 06/21/2022 | B76: INTERNATIONAL TRANSACTION FEE 06/20 COMPLIANZ-GDPR-PR GRONINGEN DEBIT CARD *7429 | C76: -1.35 | D76: 584.12
A77: 06/21/2022 | B77: INTERNATIONAL TRANSACTION FEE 06/20 REALLY-SIMPLE-SSL GRONINGEN DEBIT CARD *7429 | C77: -0.7 | D77: 583.42
A78: 2022-01-07 | B78: Monthly Fee Business Adv Relationship | C78: -29.95 | D78: 553.47
A79: 2022-08-07 | B79: PEREGRINE AVIONI DES:QUICKBOOKS ID:375020979 INDN:AVIAGLOBAL GROUP, LLC CO ID:1722616653 PPD | C79: 3000 | D79: 3553.47
A80: 07/14/2022 | B80: STAMPS.COM 07/14 PURCHASE 855-608-2677 CA DEBIT CARD *7411 | C80: -17.99 | D80: 3535.48
A81: 07/19/2022 | B81: MAILCHIMP *MISC 07/18 PURCHASE MAILCHIMP.COM GA DEBIT CARD *7411 | C81: -11.62 | D81: 3523.86
A82: 07/20/2022 | B82: MailChimp 07/20 PURCHASE Atlanta GA DEBIT CARD *7411 | C82: -59 | D82: 3464.86
A83: 2022-01-08 | B83: SAE INTERNATIONAL 07/30 PURCHASE 7247764841 PA DEBIT CARD *7411 | C83: -120 | D83: 3344.86
A84: 2022-01-08 | B84: Monthly Fee Business Adv Relationship | C84: -29.95 | D84: 3314.91
A85: 2022-08-08 | B85: PEREGRINE AVIONI DES:QUICKBOOKS ID:375020979 INDN:AVIAGLOBAL GROUP, LLC CO ID:1722616653 PPD | C85: 3000 | D85: 6314.91
A86: 08/15/2022 | B86: STAMPS.COM 08/14 PURCHASE 855-608-2677 CA DEBIT CARD *7411 | C86: -17.99 | D86: 6296.92
A87: 08/19/2022 | B87: MAILCHIMP *MISC 08/18 PURCHASE MAILCHIMP.COM GA DEBIT CARD *7411 | C87: -11.62 | D87: 6285.3
A88: 08/22/2022 | B88: MailChimp 08/20 PURCHASE Atlanta GA DEBIT CARD *7411 | C88: -59 | D88: 6226.3
A89: 08/31/2022 | B89: PEREGRINE AVIONI DES:QUICKBOOKS ID:375020979 INDN:AVIAGLOBAL GROUP, LLC CO ID:1722616653 PPD | C89: 3194.99 | D89: 9421.29
A90: 2022-01-09 | B90: HELICOPTER ASSOCI 08/31 PURCHASE 7036834646 VA DEBIT CARD *7429 | C90: -325 | D90: 9096.29
A91: 2022-01-09 | B91: Monthly Fee Business Adv Relationship | C91: -29.95 | D91: 9066.34
A92: 2022-07-09 | B92: TRANSFER AVIAGLOBAL GROUP, LL:ADS-B Global LLC Confirmation# 0156760934 | C92: -2700 | D92: 6366.34
A93: 2022-07-09 | B93: TRANSFER AVIAGLOBAL GROUP, LL:Forrest Colliver Confirmation# 1556772007 | C93: -2700 | D93: 3666.34
A94: 2022-07-09 | B94: Online Banking Transfer Conf# itu1b5i02; AERO BUSINESS DEVELOPEMENT LLC | C94: -2700 | D94: 966.34
A95: 2022-08-09 | B95: External transfer fee - 3 Day - 09/07/2022 Confirmation: 403675046 | C95: -1 | D95: 965.34
A96: 2022-08-09 | B96: External transfer fee - 3 Day - 09/07/2022 Confirmation: 403675426 | C96: -1 | D96: 964.34
A97: 09/14/2022 | B97: PEREGRINE AVIONI DES:QUICKBOOKS ID:375020979 INDN:AVIAGLOBAL GROUP, LLC CO ID:1722616653 PPD | C97: 3000 | D97: 3964.34
A98: 09/14/2022 | B98: STAMPS.COM 09/14 PURCHASE 855-608-2677 CA DEBIT CARD *7411 | C98: -17.99 | D98: 3946.35
A99: 09/19/2022 | B99: MAILCHIMP *MISC 09/18 PURCHASE MAILCHIMP.COM GA DEBIT CARD *7411 | C99: -11.62 | D99: 3934.73
A100: 09/20/2022 | B100: MailChimp 09/20 PURCHASE Atlanta GA DEBIT CARD *7411 | C100: -59 | D100: 3875.73
A101: 2022-03-10 | B101: Monthly Fee Business Adv Relationship | C101: -29.95 | D101: 3845.78
A102: 2022-06-10 | B102: DOWNLOAD-MONITOR. 10/06 PURCHASE BUCURESTI DEBIT CARD *7429 | C102: -159 | D102: 3686.78
A103: 2022-06-10 | B103: INTERNATIONAL TRANSACTION FEE 10/06 DOWNLOAD-MONITOR. BUCURESTI DEBIT CARD *7429 | C103: -4.77 | D103: 3682.01
A104: 10/17/2022 | B104: STAMPS.COM 10/14 PURCHASE 855-608-2677 CA DEBIT CARD *7411 | C104: -17.99 | D104: 3664.02
A105: 10/19/2022 | B105: MAILCHIMP *MISC 10/18 PURCHASE MAILCHIMP.COM GA DEBIT CARD *7411 | C105: -11.62 | D105: 3652.4
A106: 10/20/2022 | B106: MailChimp 10/20 PURCHASE Atlanta GA DEBIT CARD *7411 | C106: -59 | D106: 3593.4
A107: 10/31/2022 | B107: NATIONAL BUS AVIA 10/28 PURCHASE WASHINGTON DC DEBIT CARD *7411 | C107: -52.5 | D107: 3540.9
A108: 2022-01-11 | B108: Monthly Fee Business Adv Relationship | C108: -29.95 | D108: 3510.95
A109: 2022-02-11 | B109: PEREGRINE AVIONI DES:QUICKBOOKS ID:375020979 INDN:AVIAGLOBAL GROUP, LLC CO ID:1722616653 PPD | C109: 2000 | D109: 5510.95
A110: 11/14/2022 | B110: STAMPS.COM 11/13 PURCHASE 855-608-2677 TX DEBIT CARD *7411 | C110: -17.99 | D110: 5492.96
A111: 11/21/2022 | B111: MAILCHIMP *MISC 11/18 PURCHASE MAILCHIMP.COM GA DEBIT CARD *7411 | C111: -11.62 | D111: 5481.34
A112: 11/21/2022 | B112: MailChimp 11/20 PURCHASE Atlanta GA DEBIT CARD *7411 | C112: -59 | D112: 5422.34
A113: 11/21/2022 | B113: INMOTIONHOSTING.C 11/20 PURCHASE 888-3214678 CA DEBIT CARD *7429 | C113: -119.99 | D113: 5302.35
A114: 11/28/2022 | B114: INMOTIONHOSTING.C 11/25 PURCHASE 888-3214678 CA DEBIT CARD *7429 | C114: -479.85 | D114: 4822.5
A115: 2022-01-12 | B115: Monthly Fee Business Adv Relationship | C115: -29.95 | D115: 4792.55
A116: 2022-09-12 | B116: PEREGRINE AVIONI DES:QUICKBOOKS ID:375020979 INDN:AVIAGLOBAL GROUP, LLC CO ID:1722616653 PPD | C116: 2000 | D116: 6792.55
A117: 12/14/2022 | B117: STAMPS.COM 12/13 PURCHASE 855-608-2677 TX DEBIT CARD *7411 | C117: -17.99 | D117: 6774.56
A118: 12/19/2022 | B118: INMOTIONHOSTING.C 12/16 PURCHASE 888-3214678 CA DEBIT CARD *7429 | C118: -39.58 | D118: 6734.98
A119: 12/19/2022 | B119: MAILCHIMP *MISC 12/18 PURCHASE MAILCHIMP.COM GA DEBIT CARD *7411 | C119: -11.62 | D119: 6723.36
A120: 12/20/2022 | B120: PEREGRINE AVIONI DES:QUICKBOOKS ID:375020979 INDN:AVIAGLOBAL GROUP, LLC CO ID:1722616653 PPD | C120: 7063.61 | D120: 13786.97
A121: 12/20/2022 | B121: MailChimp 12/20 PURCHASE Atlanta GA DEBIT CARD *7411 | C121: -59 | D121: 13727.97
A122: 12/22/2022 | B122: TRANSFER AVIAGLOBAL GROUP, LL:ADS-B Global LLC Confirmation# 0273896038 | C122: -3300 | D122: 10427.97
A123: 12/22/2022 | B123: TRANSFER AVIAGLOBAL GROUP, LL:Forrest Colliver Confirmation# 0273906671 | C123: -3300 | D123: 7127.97
A124: 12/22/2022 | B124: Online Banking Transfer Conf# fr8bmzdeg; AERO BUSINESS DEVELOPEMENT LLC | C124: -3300 | D124: 3827.97
A125: 12/23/2022 | B125: TRANSFER AVIAGLOBAL GROUP, LL:Forrest Colliver Confirmation# 0281150631 | C125: -1549.3 | D125: 2278.67
A126: 12/23/2022 | B126: TRANSFER AVIAGLOBAL GROUP, LL:ADS-B Global LLC Confirmation# 1581367783 | C126: -70.62 | D126: 2208.05
A127: 12/23/2022 | B127: External transfer fee - 3 Day - 12/22/2022 Confirmation: 418383038 | C127: -1 | D127: 2207.05
A128: 12/23/2022 | B128: External transfer fee - 3 Day - 12/22/2022 Confirmation: 418383332 | C128: -1 | D128: 2206.05
A129: 12/27/2022 | B129: External transfer fee - Next Day - 12/23/2022 Confirmation: 418570494 | C129: -5 | D129: 2201.05
A130: 12/27/2022 | B130: External transfer fee - 3 Day - 12/23/2022 Confirmation: 418577030 | C130: -1 | D130: 2200.05

Sheet Documented Transactions by date
A1: Date | B1: Description | C1: Amount | D1: Running Bal. | E1: Who | F1: Bill to | G1: Column1 | H1: Expense Report? | I1: Invoice | J1: Charge Receipt
A2: 2022-01-01 | B2: Beginning balance as of 01/01/2022 | D2: 663.71 | E2: =IFERROR(INDEX([1]Lookup!$B$2:$C$5,MATCH(RIGHT(TRIM(Table1[[#This Row],[Description]]),4),[1]Lookup!$B$2:$B$5,0),2),"") -> 
A3: 2022-01-03 | B3: OWL FOR THUNDERBI 01/02 PURCHASE WIESBADEN DEBIT CARD *7429 | C3: -11.38 | D3: =D2+Table1[[#This Row],[Amount]] -> 652.33 | E3: =IFERROR(INDEX([1]Lookup!$B$2:$C$5,MATCH(RIGHT(TRIM(Table1[[#This Row],[Description]]),4),[1]Lookup!$B$2:$B$5,0),2),"") -> FWC | F3: AGG | G3: Outook | H3: 221226 - FWC ER Mastercard EOY-2022 | I3: -
A4: 2022-01-03 | B4: Monthly Fee Business Adv Relationship | C4: -29.95 | D4: =D3+Table1[[#This Row],[Amount]] -> 622.38 | E4: =IFERROR(INDEX([1]Lookup!$B$2:$C$5,MATCH(RIGHT(TRIM(Table1[[#This Row],[Description]]),4),[1]Lookup!$B$2:$B$5,0),2),"") ->  | F4: AGG | I4: -
A5: 2022-01-03 | B5: INTERNATIONAL TRANSACTION FEE 01/02 OWL FOR THUNDERBI WIESBADEN DEBIT CARD *7429 | C5: -0.34 | D5: =D4+Table1[[#This Row],[Amount]] -> 622.04 | E5: =IFERROR(INDEX([1]Lookup!$B$2:$C$5,MATCH(RIGHT(TRIM(Table1[[#This Row],[Description]]),4),[1]Lookup!$B$2:$B$5,0),2),"") -> FWC | F5: AGG | G5: Outlook | H5: 221226 - FWC ER Mastercard EOY-2022 | I5: - | J5: =TEXT(Table1[[#This Row],[Date]],"YYMMDD")&" - Intl Transaction Fee - "&LEFT(RIGHT(Table1[[#This Row],[Description]],LEN(Table1[[#This Row],[Description]])-LEN("international transaction fee xx/xx ")),SEARCH("DEBIT",RIGHT(Table1[[#This Row],[Description]],LEN(Table1[[#This Row],[Description]])-LEN("international transaction fee xx/xx xx"))))&".pdf" -> 220103 - Intl Transaction Fee - OWL FOR THUNDERBI WIESBADEN.pdf
A6: 2022-01-19 | B6: MAILCHIMP *MISC 01/18 PURCHASE MAILCHIMP.COM GA DEBIT CARD *7411 | C6: -9.49 | D6: =D5+Table1[[#This Row],[Amount]] -> 612.55 | E6: =IFERROR(INDEX([1]Lookup!$B$2:$C$5,MATCH(RIGHT(TRIM(Table1[[#This Row],[Description]]),4),[1]Lookup!$B$2:$B$5,0),2),"") -> LRC | F6: AGG | G6: Mailchimp | H6: 220310 - LRC ADS_BG ER MasterCard 04-2022 | I6: - | J6: 220118 - AGG - Mailchimp Essentials MC14760854.pdf
A7: 2022-01-20 | B7: MailChimp 01/20 PURCHASE Atlanta GA DEBIT CARD *7411 | C7: -47.69 | D7: =D6+Table1[[#This Row],[Amount]] -> 564.86 | E7: =IFERROR(INDEX([1]Lookup!$B$2:$C$5,MATCH(RIGHT(TRIM(Table1[[#This Row],[Description]]),4),[1]Lookup!$B$2:$B$5,0),2),"") -> LRC | F7: Peregrine | G7: Mailchimp | H7: 220310 - LRC ADS_BG ER MasterCard Peregrine Billable 03-2022 | I7: 005-22 | J7: 220120 - Peregrine - Mailchimp Essentials MC14777938.pdf
A8: 2022-01-24 | B8: PEREGRINE AVIONI DES:QUICKBOOKS ID:375020979 INDN:AVIAGLOBAL GROUP, LLC CO ID:1722616653 PPD | C8: 1500 | D8: =D7+Table1[[#This Row],[Amount]] -> 2064.86 | E8: =IFERROR(INDEX([1]Lookup!$B$2:$C$5,MATCH(RIGHT(TRIM(Table1[[#This Row],[Description]]),4),[1]Lookup!$B$2:$B$5,0),2),"") -> 
A9: 2022-01-24 | B9: SOFTACULOUS 01/24 PURCHASE ABU DHABI DEBIT CARD *7429 | C9: -24 | D9: =D8+Table1[[#This Row],[Amount]] -> 2040.86 | E9: =IFERROR(INDEX([1]Lookup!$B$2:$C$5,MATCH(RIGHT(TRIM(Table1[[#This Row],[Description]]),4),[1]Lookup!$B$2:$B$5,0),2),"") -> FWC | F9: Peregrine | G9: Security | H9: 221221 - FWC ER Peregrine Billable 1Q22 | J9: 220124 - Softaculous Loginizer 783150.pdf
A10: 2022-01-24 | B10: ELEMENTOR 01/24 PURCHASE WILMINGTON DE DEBIT CARD *7429 | C10: -49 | D10: =D9+Table1[[#This Row],[Amount]] -> 1991.86 | E10: =IFERROR(INDEX([1]Lookup!$B$2:$C$5,MATCH(RIGHT(TRIM(Table1[[#This Row],[Description]]),4),[1]Lookup!$B$2:$B$5,0),2),"") -> FWC | F10: Peregrine | G10: CMS Editor | H10: 221221 - FWC ER Peregrine Billable 1Q22 | J10: 220124 - Elementor Pro.pdf
A11: 2022-01-24 | B11: INTERNATIONAL TRANSACTION FEE 01/24 SOFTACULOUS ABU DHABI DEBIT CARD *7429 | C11: -0.72 | D11: =D10+Table1[[#This Row],[Amount]] -> 1991.14 | E11: =IFERROR(INDEX([1]Lookup!$B$2:$C$5,MATCH(RIGHT(TRIM(Table1[[#This Row],[Description]]),4),[1]Lookup!$B$2:$B$5,0),2),"") -> FWC | F11: Peregrine | G11: Fee | H11: 221221 - FWC ER Peregrine Billable 1Q22 | J11: =TEXT(Table1[[#This Row],[Date]],"YYMMDD")&" - Intl Transaction Fee - "&LEFT(RIGHT(Table1[[#This Row],[Description]],LEN(Table1[[#This Row],[Description]])-LEN("international transaction fee xx/xx ")),SEARCH("DEBIT",RIGHT(Table1[[#This Row],[Description]],LEN(Table1[[#This Row],[Description]])-LEN("international transaction fee xx/xx xx"))))&".pdf" -> 220124 - Intl Transaction Fee - SOFTACULOUS ABU DHABI.pdf
A12: 2022-01-25 | B12: REALLY-SIMPLE-SSL 01/24 PURCHASE GRONINGEN DEBIT CARD *7429 | C12: -23.2 | D12: =D11+Table1[[#This Row],[Amount]] -> 1967.94 | E12: =IFERROR(INDEX([1]Lookup!$B$2:$C$5,MATCH(RIGHT(TRIM(Table1[[#This Row],[Description]]),4),[1]Lookup!$B$2:$B$5,0),2),"") -> FWC | F12: Peregrine | G12: SSL Cert Manager | H12: 221221 - FWC ER Peregrine Billable 1Q22 | J12: 220124 - Really Simple SSL 2022-1993.pdf
A13: 2022-01-25 | B13: COMPLIANZ-GDPR-PR 01/25 PURCHASE GRONINGEN DEBIT CARD *7429 | C13: -45 | D13: =D12+Table1[[#This Row],[Amount]] -> 1922.94 | E13: =IFERROR(INDEX([1]Lookup!$B$2:$C$5,MATCH(RIGHT(TRIM(Table1[[#This Row],[Description]]),4),[1]Lookup!$B$2:$B$5,0),2),"") -> FWC | F13: Peregrine | G13: Privacy Compliance | H13: 221221 - FWC ER Peregrine Billable 1Q22 | J13: 220125 - Complianz 2022-0745.pdf
A14: 2022-01-25 | B14: INTERNATIONAL TRANSACTION FEE 01/25 COMPLIANZ-GDPR-PR GRONINGEN DEBIT CARD *7429 | C14: -1.35 | D14: =D13+Table1[[#This Row],[Amount]] -> 1921.59 | E14: =IFERROR(INDEX([1]Lookup!$B$2:$C$5,MATCH(RIGHT(TRIM(Table1[[#This Row],[Description]]),4),[1]Lookup!$B$2:$B$5,0),2),"") -> FWC | F14: Peregrine | G14: Fee | H14: 221221 - FWC ER Peregrine Billable 1Q22 | J14: =TEXT(Table1[[#This Row],[Date]],"YYMMDD")&" - Intl Transaction Fee - "&LEFT(RIGHT(Table1[[#This Row],[Description]],LEN(Table1[[#This Row],[Description]])-LEN("international transaction fee xx/xx ")),SEARCH("DEBIT",RIGHT(Table1[[#This Row],[Description]],LEN(Table1[[#This Row],[Description]])-LEN("international transaction fee xx/xx xx"))))&".pdf" -> 220125 - Intl Transaction Fee - COMPLIANZ-GDPR-PR GRONINGEN.pdf
A15: 2022-01-25 | B15: INTERNATIONAL TRANSACTION FEE 01/24 REALLY-SIMPLE-SSL GRONINGEN DEBIT CARD *7429 | C15: -0.7 | D15: =D14+Table1[[#This Row],[Amount]] -> 1920.89 | E15: =IFERROR(INDEX([1]Lookup!$B$2:$C$5,MATCH(RIGHT(TRIM(Table1[[#This Row],[Description]]),4),[1]Lookup!$B$2:$B$5,0),2),"") -> FWC | F15: Peregrine | G15: Fee | H15: 221221 - FWC ER Peregrine Billable 1Q22 | J15: =TEXT(Table1[[#This Row],[Date]],"YYMMDD")&" - Intl Transaction Fee - "&LEFT(RIGHT(Table1[[#This Row],[Description]],LEN(Table1[[#This Row],[Description]])-LEN("international transaction fee xx/xx ")),SEARCH("DEBIT",RIGHT(Table1[[#This Row],[Description]],LEN(Table1[[#This Row],[Description]])-LEN("international transaction fee xx/xx xx"))))&".pdf" -> 220125 - Intl Transaction Fee - REALLY-SIMPLE-SSL GRONINGEN.pdf
A16: 2022-01-26 | B16: BLS*Single Card 01/25 PURCHASE 972547584908 DEBIT CARD *7411 | C16: -6.99 | D16: =D15+Table1[[#This Row],[Amount]] -> 1913.9 | E16: =IFERROR(INDEX([1]Lookup!$B$2:$C$5,MATCH(RIGHT(TRIM(Table1[[#This Row],[Description]]),4),[1]Lookup!$B$2:$B$5,0),2),"") -> LRC | F16: AGG | H16: 220310 - LRC ADS_BG ER MasterCard 04-2022 | I16: - | J16: 220125 - Clear Coast Greetings Island 341592115.pdf
A17: 2022-01-26 | B17: INTERNATIONAL TRANSACTION FEE 01/25 BLS*Single Card 972547584908 DEBIT CARD *7411 | C17: -0.21 | D17: =D16+Table1[[#This Row],[Amount]] -> 1913.69 | E17: =IFERROR(INDEX([1]Lookup!$B$2:$C$5,MATCH(RIGHT(TRIM(Table1[[#This Row],[Description]]),4),[1]Lookup!$B$2:$B$5,0),2),"") -> LRC | F17: AGG | H17: 220310 - LRC ADS_BG ER MasterCard 04-2022 | I17: - | J17: 220125 - Clear Coast Greetings Island 341592115.pdf
A18: 2022-02-01 | B18: Monthly Fee Business Adv Relationship | C18: -29.95 | D18: =D17+Table1[[#This Row],[Amount]] -> 1883.74 | E18: =IFERROR(INDEX([1]Lookup!$B$2:$C$5,MATCH(RIGHT(TRIM(Table1[[#This Row],[Description]]),4),[1]Lookup!$B$2:$B$5,0),2),"") ->  | F18: AGG | I18: -
A19: 2022-02-07 | B19: INMOTIONHOSTING.C 02/06 PURCHASE 888-3214678 CA DEBIT CARD *7429 | C19: -37.18 | D19: =D18+Table1[[#This Row],[Amount]] -> 1846.56 | E19: =IFERROR(INDEX([1]Lookup!$B$2:$C$5,MATCH(RIGHT(TRIM(Table1[[#This Row],[Description]]),4),[1]Lookup!$B$2:$B$5,0),2),"") -> FWC | F19: AGG | G19: Domain | H19: 221226 - FWC ER Mastercard EOY-2022 | I19: -
A20: 2022-02-14 | B20: JET NET 02/10 PURCHASE 315-797-4420 NY DEBIT CARD *7411 | C20: -850 | D20: =D19+Table1[[#This Row],[Amount]] -> 996.56 | E20: =IFERROR(INDEX([1]Lookup!$B$2:$C$5,MATCH(RIGHT(TRIM(Table1[[#This Row],[Description]]),4),[1]Lookup!$B$2:$B$5,0),2),"") -> LRC | F20: Peregrine | H20: 220211 ‐ LRC ADS_BG ER MasterCard Peregrine Billable 02a‐2022 | I20: 003-22 | J20: Executed Custom Special Report Project Agreement AviaGlobal Group LLC[84].pdf
A21: 2022-02-18 | B21: PEREGRINE AVIONI DES:QUICKBOOKS ID:375020979 INDN:AVIAGLOBAL GROUP, LLC CO ID:1722616653 PPD | C21: 1500 | D21: =D20+Table1[[#This Row],[Amount]] -> 2496.56 | E21: =IFERROR(INDEX([1]Lookup!$B$2:$C$5,MATCH(RIGHT(TRIM(Table1[[#This Row],[Description]]),4),[1]Lookup!$B$2:$B$5,0),2),"") -> 
A22: 2022-02-22 | B22: MailChimp 02/20 PURCHASE Atlanta GA DEBIT CARD *7411 | C22: -59 | D22: =D21+Table1[[#This Row],[Amount]] -> 2437.56 | E22: =IFERROR(INDEX([1]Lookup!$B$2:$C$5,MATCH(RIGHT(TRIM(Table1[[#This Row],[Description]]),4),[1]Lookup!$B$2:$B$5,0),2),"") -> LRC | F22: Peregrine | G22: Mailchimp | H22: 220310 - LRC ADS_BG ER MasterCard Peregrine Billable 03-2022 | I22: 005-22 | J22: 220220 - Peregrine - Mailchimp Essentials MC15026518.pdf
A23: 2022-02-22 | B23: MAILCHIMP *MISC 02/18 PURCHASE MAILCHIMP.COM GA DEBIT CARD *7411 | C23: -11.62 | D23: =D22+Table1[[#This Row],[Amount]] -> 2425.94 | E23: =IFERROR(INDEX([1]Lookup!$B$2:$C$5,MATCH(RIGHT(TRIM(Table1[[#This Row],[Description]]),4),[1]Lookup!$B$2:$B$5,0),2),"") -> LRC | F23: AGG | G23: Mailchimp | H23: 220310 - LRC ADS_BG ER MasterCard 04-2022 | I23: - | J23: 220218 - AGG - Mailchimp Essentials MC15010226.pdf
A24: 2022-03-01 | B24: Monthly Fee Business Adv Relationship | C24: -29.95 | D24: =D23+Table1[[#This Row],[Amount]] -> 2395.99 | E24: =IFERROR(INDEX([1]Lookup!$B$2:$C$5,MATCH(RIGHT(TRIM(Table1[[#This Row],[Description]]),4),[1]Lookup!$B$2:$B$5,0),2),"") ->  | F24: AGG | I24: -
A25: 2022-03-15 | B25: Amazon.com*1N91P5 03/14 PURCHASE Amzn.com/bill WA DEBIT CARD *7411 | C25: -66.66 | D25: =D24+Table1[[#This Row],[Amount]] -> 2329.33 | E25: =IFERROR(INDEX([1]Lookup!$B$2:$C$5,MATCH(RIGHT(TRIM(Table1[[#This Row],[Description]]),4),[1]Lookup!$B$2:$B$5,0),2),"") -> LRC | F25: Peregrine | H25: 220310 - LRC ADS_BG ER MasterCard Peregrine Billable 03-2022 | I25: 006-22 | J25: Amazon.com - Order 111-7793024-7025007.pdf
A26: 2022-03-15 | B26: STAMPS.COM 03/14 PURCHASE 855-608-2677 CA DEBIT CARD *7411 | C26: -30.12 | D26: =D25+Table1[[#This Row],[Amount]] -> 2299.21 | E26: =IFERROR(INDEX([1]Lookup!$B$2:$C$5,MATCH(RIGHT(TRIM(Table1[[#This Row],[Description]]),4),[1]Lookup!$B$2:$B$5,0),2),"") -> LRC | F26: Peregrine | G26: Stamps | H26: 220310 - LRC ADS_BG ER MasterCard Peregrine Billable 03-2022 | I26: 006-22 | J26: Stamps dot com st2385760.pdf
A27: 2022-03-15 | B27: STAMPS.COM 03/14 PURCHASE 855-608-2677 CA DEBIT CARD *7411 | C27: -19.19 | D27: =D26+Table1[[#This Row],[Amount]] -> 2280.02 | E27: =IFERROR(INDEX([1]Lookup!$B$2:$C$5,MATCH(RIGHT(TRIM(Table1[[#This Row],[Description]]),4),[1]Lookup!$B$2:$B$5,0),2),"") -> LRC | F27: AGG | G27: Stamps | H27: 220322 ‐ LRC ADS_BG ER MasterCard 07‐2022 | I27: - | J27: Stamps dot com st2385037.pdf
A28: 2022-03-15 | B28: TRANSFER AVIAGLOBAL GROUP, LL:ADS-B Global LLC Confirmation# 1737069000 | C28: -74.1 | D28: =D27+Table1[[#This Row],[Amount]] -> 2205.92 | E28: =IFERROR(INDEX([1]Lookup!$B$2:$C$5,MATCH(RIGHT(TRIM(Table1[[#This Row],[Description]]),4),[1]Lookup!$B$2:$B$5,0),2),"") -> 
A29: 2022-03-16 | B29: MONSTERINSIGHTS W 03/16 PURCHASE PALM BEACH GA FL DEBIT CARD *7429 | C29: -199 | D29: =D28+Table1[[#This Row],[Amount]] -> 2006.92 | E29: =IFERROR(INDEX([1]Lookup!$B$2:$C$5,MATCH(RIGHT(TRIM(Table1[[#This Row],[Description]]),4),[1]Lookup!$B$2:$B$5,0),2),"") -> FWC | F29: Peregrine | G29: Web Traffic | H29: 221221 - FWC ER Peregrine Billable 1Q22 | J29: 220316 - Monsterinsights Plus.pdf
A30: 2022-03-16 | B30: SEMPER PLUGINS AI 03/16 PURCHASE PALM BEACH GA FL DEBIT CARD *7429 | C30: -99 | D30: =D29+Table1[[#This Row],[Amount]] -> 1907.92 | E30: =IFERROR(INDEX([1]Lookup!$B$2:$C$5,MATCH(RIGHT(TRIM(Table1[[#This Row],[Description]]),4),[1]Lookup!$B$2:$B$5,0),2),"") -> FWC | F30: Peregrine | G30: SEO Plugin | H30: 221221 - FWC ER Peregrine Billable 1Q22
A31: 2022-03-16 | B31: External transfer fee - 3 Day - 03/15/2022 Confirmation: 379444042 | C31: -1 | D31: =D30+Table1[[#This Row],[Amount]] -> 1906.92 | E31: FWC | F31: AGG | H31: 221226 - FWC ER Mastercard EOY-2022 | I31: -
A32: 2022-03-17 | B32: PEREGRINE AVIONI DES:QUICKBOOKS ID:375020979 INDN:AVIAGLOBAL GROUP, LLC CO ID:1722616653 PPD | C32: 3850 | D32: =D31+Table1[[#This Row],[Amount]] -> 5756.92 | E32: =IFERROR(INDEX([1]Lookup!$B$2:$C$5,MATCH(RIGHT(TRIM(Table1[[#This Row],[Description]]),4),[1]Lookup!$B$2:$B$5,0),2),"") -> 
A33: 2022-03-18 | B33: USPS STAMPS ENDIC 03/17 PURCHASE 888-434-0055 DC DEBIT CARD *7411 | C33: -100 | D33: =D32+Table1[[#This Row],[Amount]] -> 5656.92 | E33: =IFERROR(INDEX([1]Lookup!$B$2:$C$5,MATCH(RIGHT(TRIM(Table1[[#This Row],[Description]]),4),[1]Lookup!$B$2:$B$5,0),2),"") -> LRC | F33: Peregrine | G33: Stamps | H33: 220310 - LRC ADS_BG ER MasterCard Peregrine Billable 03-2022 | I33: 006-22 | J33: Stamps dot com Postage orders.pdf
A34: 2022-03-18 | B34: USPS STAMPS ENDIC 03/17 PURCHASE 888-434-0055 DC DEBIT CARD *7411 | C34: -50 | D34: =D33+Table1[[#This Row],[Amount]] -> 5606.92 | E34: =IFERROR(INDEX([1]Lookup!$B$2:$C$5,MATCH(RIGHT(TRIM(Table1[[#This Row],[Description]]),4),[1]Lookup!$B$2:$B$5,0),2),"") -> LRC | F34: Peregrine | G34: Stamps | H34: 220310 - LRC ADS_BG ER MasterCard Peregrine Billable 03-2022 | I34: 006-22 | J34: Stamps dot com Postage orders.pdf
A35: 2022-03-18 | B35: AMZN Mktp US*1N5B 03/17 PURCHASE Amzn.com/bill WA DEBIT CARD *7411 | C35: -29.63 | D35: =D34+Table1[[#This Row],[Amount]] -> 5577.29 | E35: =IFERROR(INDEX([1]Lookup!$B$2:$C$5,MATCH(RIGHT(TRIM(Table1[[#This Row],[Description]]),4),[1]Lookup!$B$2:$B$5,0),2),"") -> LRC | F35: Peregrine | H35: 220310 - LRC ADS_BG ER MasterCard Peregrine Billable 03-2022 | I35: 006-22 | J35: Amazon.com - Order 114-5434031-3824202.pdf
A36: 2022-03-21 | B36: MailChimp 03/20 PURCHASE Atlanta GA DEBIT CARD *7411 | C36: -59 | D36: =D35+Table1[[#This Row],[Amount]] -> 5518.29 | E36: =IFERROR(INDEX([1]Lookup!$B$2:$C$5,MATCH(RIGHT(TRIM(Table1[[#This Row],[Description]]),4),[1]Lookup!$B$2:$B$5,0),2),"") -> LRC | F36: Peregrine | G36: Mailchimp | H36: 220310 - LRC ADS_BG ER MasterCard Peregrine Billable 03-2022 | I36: 006-22 | J36: 220320 - Peregrine - Mailchimp Essentials MC15268026.pdf
A37: 2022-03-21 | B37: MAILCHIMP *MISC 03/18 PURCHASE MAILCHIMP.COM GA DEBIT CARD *7411 | C37: -11.62 | D37: =D36+Table1[[#This Row],[Amount]] -> 5506.67 | E37: =IFERROR(INDEX([1]Lookup!$B$2:$C$5,MATCH(RIGHT(TRIM(Table1[[#This Row],[Description]]),4),[1]Lookup!$B$2:$B$5,0),2),"") -> LRC | F37: AGG | G37: Mailchimp | H37: 220322 ‐ LRC ADS_BG ER MasterCard 07‐2022 | I37: - | J37: 220318 - AGG - Mailchimp Essentials MC15252178.pdf
A38: 2022-03-23 | B38: TRANSFER AVIAGLOBAL GROUP, LL:ADS-B Global LLC Confirmation# 0107351744 | C38: -96.55 | D38: =D37+Table1[[#This Row],[Amount]] -> 5410.12 | E38: =IFERROR(INDEX([1]Lookup!$B$2:$C$5,MATCH(RIGHT(TRIM(Table1[[#This Row],[Description]]),4),[1]Lookup!$B$2:$B$5,0),2),"") -> 
A39: 2022-03-24 | B39: USPS STAMPS ENDIC 03/23 PURCHASE 888-434-0055 DC DEBIT CARD *7411 | C39: -25 | D39: =D38+Table1[[#This Row],[Amount]] -> 5385.12 | E39: =IFERROR(INDEX([1]Lookup!$B$2:$C$5,MATCH(RIGHT(TRIM(Table1[[#This Row],[Description]]),4),[1]Lookup!$B$2:$B$5,0),2),"") -> LRC | F39: Peregrine | G39: Stamps | H39: 220310 - LRC ADS_BG ER MasterCard Peregrine Billable 03-2022 | I39: 006-22 | J39: Stamps dot com Postage orders.pdf
A40: 2022-03-24 | B40: External transfer fee - 3 Day - 03/23/2022 Confirmation: 380466874 | C40: -1 | D40: =D39+Table1[[#This Row],[Amount]] -> 5384.12 | E40: =IFERROR(INDEX([1]Lookup!$B$2:$C$5,MATCH(RIGHT(TRIM(Table1[[#This Row],[Description]]),4),[1]Lookup!$B$2:$B$5,0),2),"") ->  | F40: AGG | I40: -
A41: 2022-03-29 | B41: MICHAEL L STUCK C 03/28 PURCHASE SCOTTSDALE AZ DEBIT CARD *0975 | C41: -575 | D41: =D40+Table1[[#This Row],[Amount]] -> 4809.12 | E41: =IFERROR(INDEX([1]Lookup!$B$2:$C$5,MATCH(RIGHT(TRIM(Table1[[#This Row],[Description]]),4),[1]Lookup!$B$2:$B$5,0),2),"") -> HEA | F41: AGG
A42: 2022-03-31 | B42: NATIONAL BUS AVIA 03/31 PURCHASE WASHINGTON DC DEBIT CARD *7411 | C42: -750 | D42: =D41+Table1[[#This Row],[Amount]] -> 4059.12 | E42: =IFERROR(INDEX([1]Lookup!$B$2:$C$5,MATCH(RIGHT(TRIM(Table1[[#This Row],[Description]]),4),[1]Lookup!$B$2:$B$5,0),2),"") -> LRC | F42: AGG | H42: 221227 - LRC ADS_BG ER MasterCard 18-2022 | I42: - | J42: 220331 - NBAA Dues 000419790.pdf
A43: 2022-04-01 | B43: Monthly Fee Business Adv Relationship | C43: -29.95 | D43: =D42+Table1[[#This Row],[Amount]] -> 4029.17 | E43: =IFERROR(INDEX([1]Lookup!$B$2:$C$5,MATCH(RIGHT(TRIM(Table1[[#This Row],[Description]]),4),[1]Lookup!$B$2:$B$5,0),2),"") ->  | F43: AGG | I43: -
A44: 2022-04-08 | B44: EVERMAP COMPANY L 04/05 PURCHASE CORVALLIS OR DEBIT CARD *0975 | C44: -149 | D44: =D43+Table1[[#This Row],[Amount]] -> 3880.17 | E44: =IFERROR(INDEX([1]Lookup!$B$2:$C$5,MATCH(RIGHT(TRIM(Table1[[#This Row],[Description]]),4),[1]Lookup!$B$2:$B$5,0),2),"") -> HEA | F44: AGG
A45: 2022-04-13 | B45: EVERMAP COMPANY L 04/05 PURCHASE CORVALLIS OR DEBIT CARD *7411 | C45: -149 | D45: =D44+Table1[[#This Row],[Amount]] -> 3731.17 | E45: =IFERROR(INDEX([1]Lookup!$B$2:$C$5,MATCH(RIGHT(TRIM(Table1[[#This Row],[Description]]),4),[1]Lookup!$B$2:$B$5,0),2),"") -> LRC | F45: AGG | H45: 221227 - LRC ADS_BG ER MasterCard 18-2022 | I45: - | J45: 220405 - Evermap PDF Tool W-48699.pdf
A46: 2022-04-14 | B46: STAMPS.COM 04/14 PURCHASE 855-608-2677 CA DEBIT CARD *7411 | C46: -17.99 | D46: =D45+Table1[[#This Row],[Amount]] -> 3713.18 | E46: =IFERROR(INDEX([1]Lookup!$B$2:$C$5,MATCH(RIGHT(TRIM(Table1[[#This Row],[Description]]),4),[1]Lookup!$B$2:$B$5,0),2),"") -> LRC | F46: AGG | G46: Stamps | H46: 220624 - LRC ADS_BG ER Mastercard 10-2022 | I46: - | J46: 220416 - Stamps dot com.pdf
A47: 2022-04-19 | B47: MAILCHIMP *MISC 04/18 PURCHASE MAILCHIMP.COM GA DEBIT CARD *7411 | C47: -11.62 | D47: =D46+Table1[[#This Row],[Amount]] -> 3701.56 | E47: =IFERROR(INDEX([1]Lookup!$B$2:$C$5,MATCH(RIGHT(TRIM(Table1[[#This Row],[Description]]),4),[1]Lookup!$B$2:$B$5,0),2),"") -> LRC | F47: AGG | G47: Mailchimp | H47: 220624 - LRC ADS_BG ER Mastercard 10-2022 | I47: - | J47: 220418 - AGG - Mailchimp Essentials MC15490450.pdf
A48: 2022-04-20 | B48: PEREGRINE AVIONI DES:QUICKBOOKS ID:375020979 INDN:AVIAGLOBAL GROUP, LLC CO ID:1722616653 PPD | C48: 3557.1 | D48: =D47+Table1[[#This Row],[Amount]] -> 7258.66 | E48: =IFERROR(INDEX([1]Lookup!$B$2:$C$5,MATCH(RIGHT(TRIM(Table1[[#This Row],[Description]]),4),[1]Lookup!$B$2:$B$5,0),2),"") -> 
A49: 2022-04-20 | B49: MailChimp 04/20 PURCHASE Atlanta GA DEBIT CARD *7411 | C49: -59 | D49: =D48+Table1[[#This Row],[Amount]] -> 7199.66 | E49: =IFERROR(INDEX([1]Lookup!$B$2:$C$5,MATCH(RIGHT(TRIM(Table1[[#This Row],[Description]]),4),[1]Lookup!$B$2:$B$5,0),2),"") -> LRC | F49: Peregrine | G49: Mailchimp | H49: 220624 - LRC ADS_BG ER Peregrine Billable 09-2022 | I49: 011-22 | J49: 220420 - Peregrine - Mailchimp Essentials MC15506606.pdf
A50: 2022-04-22 | B50: TRANSFER AVIAGLOBAL GROUP, LL:ADS-B Global LLC Confirmation# 1763915441 | C50: -2000 | D50: =D49+Table1[[#This Row],[Amount]] -> 5199.66 | E50: =IFERROR(INDEX([1]Lookup!$B$2:$C$5,MATCH(RIGHT(TRIM(Table1[[#This Row],[Description]]),4),[1]Lookup!$B$2:$B$5,0),2),"") -> 
A51: 2022-04-22 | B51: TRANSFER AVIAGLOBAL GROUP, LL:Forrest Colliver Confirmation# 0663925416 | C51: -2000 | D51: =D50+Table1[[#This Row],[Amount]] -> 3199.66 | E51: =IFERROR(INDEX([1]Lookup!$B$2:$C$5,MATCH(RIGHT(TRIM(Table1[[#This Row],[Description]]),4),[1]Lookup!$B$2:$B$5,0),2),"") -> 
A52: 2022-04-22 | B52: Online Banking Transfer Conf# iuvu5ty24; AERO BUSINESS DEVELOPEMENT LLC | C52: -2000 | D52: =D51+Table1[[#This Row],[Amount]] -> 1199.66 | E52: =IFERROR(INDEX([1]Lookup!$B$2:$C$5,MATCH(RIGHT(TRIM(Table1[[#This Row],[Description]]),4),[1]Lookup!$B$2:$B$5,0),2),"") -> 
A53: 2022-04-25 | B53: External transfer fee - 3 Day - 04/22/2022 Confirmation: 384618918 | C53: -1 | D53: =D52+Table1[[#This Row],[Amount]] -> 1198.66 | E53: =IFERROR(INDEX([1]Lookup!$B$2:$C$5,MATCH(RIGHT(TRIM(Table1[[#This Row],[Description]]),4),[1]Lookup!$B$2:$B$5,0),2),"") ->  | F53: AGG | I53: -
A54: 2022-04-25 | B54: External transfer fee - 3 Day - 04/22/2022 Confirmation: 384619226 | C54: -1 | D54: =D53+Table1[[#This Row],[Amount]] -> 1197.66 | E54: =IFERROR(INDEX([1]Lookup!$B$2:$C$5,MATCH(RIGHT(TRIM(Table1[[#This Row],[Description]]),4),[1]Lookup!$B$2:$B$5,0),2),"") ->  | F54: AGG | I54: -
A55: 2022-05-02 | B55: Monthly Fee Business Adv Relationship | C55: -29.95 | D55: =D54+Table1[[#This Row],[Amount]] -> 1167.71 | E55: =IFERROR(INDEX([1]Lookup!$B$2:$C$5,MATCH(RIGHT(TRIM(Table1[[#This Row],[Description]]),4),[1]Lookup!$B$2:$B$5,0),2),"") ->  | F55: AGG | I55: -
A56: 2022-05-16 | B56: STAMPS.COM 05/14 PURCHASE 855-608-2677 CA DEBIT CARD *7411 | C56: -17.99 | D56: =D55+Table1[[#This Row],[Amount]] -> 1149.72 | E56: =IFERROR(INDEX([1]Lookup!$B$2:$C$5,MATCH(RIGHT(TRIM(Table1[[#This Row],[Description]]),4),[1]Lookup!$B$2:$B$5,0),2),"") -> LRC | F56: AGG | G56: Stamps | H56: 220624 - LRC ADS_BG ER Mastercard 10-2022 | I56: - | J56: 220516 - Stamps dot com.pdf
A57: 2022-05-19 | B57: MAILCHIMP *MISC 05/18 PURCHASE MAILCHIMP.COM GA DEBIT CARD *7411 | C57: -11.62 | D57: =D56+Table1[[#This Row],[Amount]] -> 1138.1 | E57: =IFERROR(INDEX([1]Lookup!$B$2:$C$5,MATCH(RIGHT(TRIM(Table1[[#This Row],[Description]]),4),[1]Lookup!$B$2:$B$5,0),2),"") -> LRC | F57: AGG | G57: Mailchimp | H57: 220624 - LRC ADS_BG ER Mastercard 10-2022 | I57: - | J57: 220518 - AGG - Mailchimp Essentials MC15724938.pdf
A58: 2022-05-20 | B58: MailChimp 05/20 PURCHASE Atlanta GA DEBIT CARD *7411 | C58: -59 | D58: =D57+Table1[[#This Row],[Amount]] -> 1079.1 | E58: =IFERROR(INDEX([1]Lookup!$B$2:$C$5,MATCH(RIGHT(TRIM(Table1[[#This Row],[Description]]),4),[1]Lookup!$B$2:$B$5,0),2),"") -> LRC | F58: Peregrine | G58: Mailchimp | H58: 220624 - LRC ADS_BG ER Peregrine Billable 09-2022 | I58: 011-22 | J58: 220520 - Peregrine - Mailchimp Essentials MC15741014.pdf
A59: 2022-06-01 | B59: Monthly Fee Business Adv Relationship | C59: -29.95 | D59: =D58+Table1[[#This Row],[Amount]] -> 1049.15 | E59: =IFERROR(INDEX([1]Lookup!$B$2:$C$5,MATCH(RIGHT(TRIM(Table1[[#This Row],[Description]]),4),[1]Lookup!$B$2:$B$5,0),2),"") ->  | F59: AGG | I59: -
A60: 2022-06-06 | B60: DMARCIAN* DMARCIA 06/04 PURCHASE BREVARD NC DEBIT CARD *7429 | C60: -239.88 | D60: =D59+Table1[[#This Row],[Amount]] -> 809.27 | E60: =IFERROR(INDEX([1]Lookup!$B$2:$C$5,MATCH(RIGHT(TRIM(Table1[[#This Row],[Description]]),4),[1]Lookup!$B$2:$B$5,0),2),"") -> FWC | F60: AGG | H60: 221201 - FWC ER Mastercard Dec-2022 | I60: - | J60: AGG - DMARCian invoice_50733.pdf
A61: 2022-06-08 | B61: DREAMSTIME.COM 06/07 PURCHASE BRENTWOOD TN DEBIT CARD *7411 | C61: -16.99 | D61: =D60+Table1[[#This Row],[Amount]] -> 792.28 | E61: =IFERROR(INDEX([1]Lookup!$B$2:$C$5,MATCH(RIGHT(TRIM(Table1[[#This Row],[Description]]),4),[1]Lookup!$B$2:$B$5,0),2),"") -> LRC | F61: Peregrine | H61: 220624 - LRC ADS_BG ER Peregrine Billable 09-2022 | I61: 011-22 | J61: 220607 - Dreamtime LLC 23829472.pdf
A62: 2022-06-08 | B62: DREAMSTIME.COM 06/07 PURCHASE BRENTWOOD TN DEBIT CARD *7411 | C62: -1 | D62: =D61+Table1[[#This Row],[Amount]] -> 791.28 | E62: =IFERROR(INDEX([1]Lookup!$B$2:$C$5,MATCH(RIGHT(TRIM(Table1[[#This Row],[Description]]),4),[1]Lookup!$B$2:$B$5,0),2),"") -> LRC | F62: Peregrine | H62: 220624 - LRC ADS_BG ER Peregrine Billable 09-2022 | I62: 011-22 | J62: 220607 - Dreamtime LLC 23829472.pdf
A63: 2022-06-14 | B63: STAMPS.COM 06/14 PURCHASE 855-608-2677 CA DEBIT CARD *7411 | C63: -17.99 | D63: =D62+Table1[[#This Row],[Amount]] -> 773.29 | E63: =IFERROR(INDEX([1]Lookup!$B$2:$C$5,MATCH(RIGHT(TRIM(Table1[[#This Row],[Description]]),4),[1]Lookup!$B$2:$B$5,0),2),"") -> LRC | F63: AGG | G63: Stamps | H63: 220624 - LRC ADS_BG ER Mastercard 10-2022 | I63: - | J63: 220616 - Stamps dot com.pdf
A64: 2022-06-21 | B64: MailChimp 06/20 PURCHASE Atlanta GA DEBIT CARD *7411 | C64: -59 | D64: =D63+Table1[[#This Row],[Amount]] -> 714.29 | E64: =IFERROR(INDEX([1]Lookup!$B$2:$C$5,MATCH(RIGHT(TRIM(Table1[[#This Row],[Description]]),4),[1]Lookup!$B$2:$B$5,0),2),"") -> LRC | F64: Peregrine | G64: Mailchimp | H64: 220624 - LRC ADS_BG ER Peregrine Billable 09-2022 | I64: 011-22 | J64: 220620 - Peregrine - Mailchimp Essentials MC15971334.pdf
A65: 2022-06-21 | B65: MAILCHIMP *MISC 06/18 PURCHASE MAILCHIMP.COM GA DEBIT CARD *7411 | C65: -11.62 | D65: =D64+Table1[[#This Row],[Amount]] -> 702.67 | E65: =IFERROR(INDEX([1]Lookup!$B$2:$C$5,MATCH(RIGHT(TRIM(Table1[[#This Row],[Description]]),4),[1]Lookup!$B$2:$B$5,0),2),"") -> LRC | F65: AGG | G65: Mailchimp | H65: 220624 - LRC ADS_BG ER Mastercard 10-2022 | I65: - | J65: 220618 - AGG - Mailchimp Essentials MC15956138.pdf
A66: 2022-06-21 | B66: ELEMENTOR 06/20 PURCHASE WILMINGTON DE DEBIT CARD *7429 | C66: -49 | D66: =D65+Table1[[#This Row],[Amount]] -> 653.67 | E66: =IFERROR(INDEX([1]Lookup!$B$2:$C$5,MATCH(RIGHT(TRIM(Table1[[#This Row],[Description]]),4),[1]Lookup!$B$2:$B$5,0),2),"") -> FWC | F66: AGG | H66: 221201 - FWC ER Mastercard Dec-2022 | I66: - | J66: AGG - Elementor Receipt #12006876.pdf
A67: 2022-06-21 | B67: REALLY-SIMPLE-SSL 06/20 PURCHASE GRONINGEN DEBIT CARD *7429 | C67: -23.2 | D67: =D66+Table1[[#This Row],[Amount]] -> 630.47 | E67: =IFERROR(INDEX([1]Lookup!$B$2:$C$5,MATCH(RIGHT(TRIM(Table1[[#This Row],[Description]]),4),[1]Lookup!$B$2:$B$5,0),2),"") -> FWC | F67: AGG | H67: 221201 - FWC ER Mastercard Dec-2022 | I67: - | J67: AGG - ReallySimple SSL Receipt 2022-13884.pdf
A68: 2022-06-21 | B68: COMPLIANZ-GDPR-PR 06/20 PURCHASE GRONINGEN DEBIT CARD *7429 | C68: -45 | D68: =D67+Table1[[#This Row],[Amount]] -> 585.47 | E68: =IFERROR(INDEX([1]Lookup!$B$2:$C$5,MATCH(RIGHT(TRIM(Table1[[#This Row],[Description]]),4),[1]Lookup!$B$2:$B$5,0),2),"") -> FWC | F68: AGG | H68: 221201 - FWC ER Mastercard Dec-2022 | I68: - | J68: AGG - Complianz Receipt 2022-4734.pdf
A69: 2022-06-21 | B69: INTERNATIONAL TRANSACTION FEE 06/20 COMPLIANZ-GDPR-PR GRONINGEN DEBIT CARD *7429 | C69: -1.35 | D69: =D68+Table1[[#This Row],[Amount]] -> 584.12 | E69: =IFERROR(INDEX([1]Lookup!$B$2:$C$5,MATCH(RIGHT(TRIM(Table1[[#This Row],[Description]]),4),[1]Lookup!$B$2:$B$5,0),2),"") -> FWC | F69: AGG | H69: 221201 - FWC ER Mastercard Dec-2022 | I69: - | J69: =TEXT(Table1[[#This Row],[Date]],"YYMMDD")&" - Intl Transaction Fee - "&LEFT(RIGHT(Table1[[#This Row],[Description]],LEN(Table1[[#This Row],[Description]])-LEN("international transaction fee xx/xx ")),SEARCH("DEBIT",RIGHT(Table1[[#This Row],[Description]],LEN(Table1[[#This Row],[Description]])-LEN("international transaction fee xx/xx xx"))))&".pdf" -> 220621 - Intl Transaction Fee - COMPLIANZ-GDPR-PR GRONINGEN.pdf
A70: 2022-06-21 | B70: INTERNATIONAL TRANSACTION FEE 06/20 REALLY-SIMPLE-SSL GRONINGEN DEBIT CARD *7429 | C70: -0.7 | D70: =D69+Table1[[#This Row],[Amount]] -> 583.42 | E70: =IFERROR(INDEX([1]Lookup!$B$2:$C$5,MATCH(RIGHT(TRIM(Table1[[#This Row],[Description]]),4),[1]Lookup!$B$2:$B$5,0),2),"") -> FWC | F70: AGG | H70: 221201 - FWC ER Mastercard Dec-2022 | I70: - | J70: =TEXT(Table1[[#This Row],[Date]],"YYMMDD")&" - Intl Transaction Fee - "&LEFT(RIGHT(Table1[[#This Row],[Description]],LEN(Table1[[#This Row],[Description]])-LEN("international transaction fee xx/xx ")),SEARCH("DEBIT",RIGHT(Table1[[#This Row],[Description]],LEN(Table1[[#This Row],[Description]])-LEN("international transaction fee xx/xx xx"))))&".pdf" -> 220621 - Intl Transaction Fee - REALLY-SIMPLE-SSL GRONINGEN.pdf
A71: 2022-07-01 | B71: Monthly Fee Business Adv Relationship | C71: -29.95 | D71: =D70+Table1[[#This Row],[Amount]] -> 553.47 | E71: =IFERROR(INDEX([1]Lookup!$B$2:$C$5,MATCH(RIGHT(TRIM(Table1[[#This Row],[Description]]),4),[1]Lookup!$B$2:$B$5,0),2),"") ->  | F71: AGG | I71: -
A72: 2022-07-08 | B72: PEREGRINE AVIONI DES:QUICKBOOKS ID:375020979 INDN:AVIAGLOBAL GROUP, LLC CO ID:1722616653 PPD | C72: 3000 | D72: =D71+Table1[[#This Row],[Amount]] -> 3553.47 | E72: =IFERROR(INDEX([1]Lookup!$B$2:$C$5,MATCH(RIGHT(TRIM(Table1[[#This Row],[Description]]),4),[1]Lookup!$B$2:$B$5,0),2),"") -> 
A73: 2022-07-14 | B73: STAMPS.COM 07/14 PURCHASE 855-608-2677 CA DEBIT CARD *7411 | C73: -17.99 | D73: =D72+Table1[[#This Row],[Amount]] -> 3535.48 | E73: =IFERROR(INDEX([1]Lookup!$B$2:$C$5,MATCH(RIGHT(TRIM(Table1[[#This Row],[Description]]),4),[1]Lookup!$B$2:$B$5,0),2),"") -> LRC | F73: AGG | G73: Stamps | H73: 221020 - LRC ADS_BG ER Mastercard 12-2022 | I73: - | J73: 220714 - Stamps dot com.pdf
A74: 2022-07-19 | B74: MAILCHIMP *MISC 07/18 PURCHASE MAILCHIMP.COM GA DEBIT CARD *7411 | C74: -11.62 | D74: =D73+Table1[[#This Row],[Amount]] -> 3523.86 | E74: =IFERROR(INDEX([1]Lookup!$B$2:$C$5,MATCH(RIGHT(TRIM(Table1[[#This Row],[Description]]),4),[1]Lookup!$B$2:$B$5,0),2),"") -> LRC | F74: AGG | G74: Mailchimp | H74: 221020 - LRC ADS_BG ER Mastercard 12-2022 | I74: - | J74: 220719 - AGG - Mailchimp Essentials MC16182470.pdf
A75: 2022-07-20 | B75: MailChimp 07/20 PURCHASE Atlanta GA DEBIT CARD *7411 | C75: -59 | D75: =D74+Table1[[#This Row],[Amount]] -> 3464.86 | E75: =IFERROR(INDEX([1]Lookup!$B$2:$C$5,MATCH(RIGHT(TRIM(Table1[[#This Row],[Description]]),4),[1]Lookup!$B$2:$B$5,0),2),"") -> LRC | F75: Peregrine | G75: Mailchimp | H75: 221020 - LRC ADS_BG ER Peregrine Billable 13-2022 | I75: 015-22 | J75: 220720 - Peregrine - Mailchimp Essentials MC16197922.pdf
A76: 2022-08-01 | B76: SAE INTERNATIONAL 07/30 PURCHASE 7247764841 PA DEBIT CARD *7411 | C76: -120 | D76: =D75+Table1[[#This Row],[Amount]] -> 3344.86 | E76: =IFERROR(INDEX([1]Lookup!$B$2:$C$5,MATCH(RIGHT(TRIM(Table1[[#This Row],[Description]]),4),[1]Lookup!$B$2:$B$5,0),2),"") -> LRC | F76: AGG | H76: 221020 - LRC ADS_BG ER Mastercard 12-2022 | I76: - | J76: 220701 - SAE Auto Renewal.pdf
A77: 2022-08-01 | B77: Monthly Fee Business Adv Relationship | C77: -29.95 | D77: =D76+Table1[[#This Row],[Amount]] -> 3314.91 | E77: =IFERROR(INDEX([1]Lookup!$B$2:$C$5,MATCH(RIGHT(TRIM(Table1[[#This Row],[Description]]),4),[1]Lookup!$B$2:$B$5,0),2),"") ->  | F77: AGG | I77: -
A78: 2022-08-08 | B78: PEREGRINE AVIONI DES:QUICKBOOKS ID:375020979 INDN:AVIAGLOBAL GROUP, LLC CO ID:1722616653 PPD | C78: 3000 | D78: =D77+Table1[[#This Row],[Amount]] -> 6314.91 | E78: =IFERROR(INDEX([1]Lookup!$B$2:$C$5,MATCH(RIGHT(TRIM(Table1[[#This Row],[Description]]),4),[1]Lookup!$B$2:$B$5,0),2),"") -> 
A79: 2022-08-15 | B79: STAMPS.COM 08/14 PURCHASE 855-608-2677 CA DEBIT CARD *7411 | C79: -17.99 | D79: =D78+Table1[[#This Row],[Amount]] -> 6296.92 | E79: =IFERROR(INDEX([1]Lookup!$B$2:$C$5,MATCH(RIGHT(TRIM(Table1[[#This Row],[Description]]),4),[1]Lookup!$B$2:$B$5,0),2),"") -> LRC | F79: AGG | G79: Stamps | H79: 221020 - LRC ADS_BG ER Mastercard 12-2022 | I79: - | J79: 220815 - Stamps dot com.pdf
A80: 2022-08-19 | B80: MAILCHIMP *MISC 08/18 PURCHASE MAILCHIMP.COM GA DEBIT CARD *7411 | C80: -11.62 | D80: =D79+Table1[[#This Row],[Amount]] -> 6285.3 | E80: =IFERROR(INDEX([1]Lookup!$B$2:$C$5,MATCH(RIGHT(TRIM(Table1[[#This Row],[Description]]),4),[1]Lookup!$B$2:$B$5,0),2),"") -> LRC | F80: AGG | G80: Mailchimp | H80: 221020 - LRC ADS_BG ER Mastercard 12-2022 | I80: - | J80: 220818 - AGG - Mailchimp Essentials MC16405518.pdf
A81: 2022-08-22 | B81: MailChimp 08/20 PURCHASE Atlanta GA DEBIT CARD *7411 | C81: -59 | D81: =D80+Table1[[#This Row],[Amount]] -> 6226.3 | E81: =IFERROR(INDEX([1]Lookup!$B$2:$C$5,MATCH(RIGHT(TRIM(Table1[[#This Row],[Description]]),4),[1]Lookup!$B$2:$B$5,0),2),"") -> LRC | F81: Peregrine | G81: Mailchimp | H81: 221020 - LRC ADS_BG ER Peregrine Billable 13-2022 | I81: 015-22 | J81: 220820 - Peregrine - Mailchimp Essentials MC16420842.pdf
A82: 2022-08-31 | B82: PEREGRINE AVIONI DES:QUICKBOOKS ID:375020979 INDN:AVIAGLOBAL GROUP, LLC CO ID:1722616653 PPD | C82: 3194.99 | D82: =D81+Table1[[#This Row],[Amount]] -> 9421.29 | E82: =IFERROR(INDEX([1]Lookup!$B$2:$C$5,MATCH(RIGHT(TRIM(Table1[[#This Row],[Description]]),4),[1]Lookup!$B$2:$B$5,0),2),"") -> 
A83: 2022-09-01 | B83: HELICOPTER ASSOCI 08/31 PURCHASE 7036834646 VA DEBIT CARD *7429 | C83: -325 | D83: =D82+Table1[[#This Row],[Amount]] -> 9096.29 | E83: =IFERROR(INDEX([1]Lookup!$B$2:$C$5,MATCH(RIGHT(TRIM(Table1[[#This Row],[Description]]),4),[1]Lookup!$B$2:$B$5,0),2),"") -> FWC | F83: AGG | H83: 221201 - FWC ER Mastercard Dec-2022 | I83: - | J83: AGG - HAI Receipt- 145241.pdf
A84: 2022-09-01 | B84: Monthly Fee Business Adv Relationship | C84: -29.95 | D84: =D83+Table1[[#This Row],[Amount]] -> 9066.34 | E84: =IFERROR(INDEX([1]Lookup!$B$2:$C$5,MATCH(RIGHT(TRIM(Table1[[#This Row],[Description]]),4),[1]Lookup!$B$2:$B$5,0),2),"") ->  | F84: AGG | I84: -
A85: 2022-09-07 | B85: TRANSFER AVIAGLOBAL GROUP, LL:ADS-B Global LLC Confirmation# 0156760934 | C85: -2700 | D85: =D84+Table1[[#This Row],[Amount]] -> 6366.34 | E85: =IFERROR(INDEX([1]Lookup!$B$2:$C$5,MATCH(RIGHT(TRIM(Table1[[#This Row],[Description]]),4),[1]Lookup!$B$2:$B$5,0),2),"") -> 
A86: 2022-09-07 | B86: TRANSFER AVIAGLOBAL GROUP, LL:Forrest Colliver Confirmation# 1556772007 | C86: -2700 | D86: =D85+Table1[[#This Row],[Amount]] -> 3666.34 | E86: =IFERROR(INDEX([1]Lookup!$B$2:$C$5,MATCH(RIGHT(TRIM(Table1[[#This Row],[Description]]),4),[1]Lookup!$B$2:$B$5,0),2),"") -> 
A87: 2022-09-07 | B87: Online Banking Transfer Conf# itu1b5i02; AERO BUSINESS DEVELOPEMENT LLC | C87: -2700 | D87: =D86+Table1[[#This Row],[Amount]] -> 966.34 | E87: =IFERROR(INDEX([1]Lookup!$B$2:$C$5,MATCH(RIGHT(TRIM(Table1[[#This Row],[Description]]),4),[1]Lookup!$B$2:$B$5,0),2),"") -> 
A88: 2022-09-08 | B88: External transfer fee - 3 Day - 09/07/2022 Confirmation: 403675046 | C88: -1 | D88: =D87+Table1[[#This Row],[Amount]] -> 965.34 | E88: =IFERROR(INDEX([1]Lookup!$B$2:$C$5,MATCH(RIGHT(TRIM(Table1[[#This Row],[Description]]),4),[1]Lookup!$B$2:$B$5,0),2),"") ->  | F88: AGG | I88: -
A89: 2022-09-08 | B89: External transfer fee - 3 Day - 09/07/2022 Confirmation: 403675426 | C89: -1 | D89: =D88+Table1[[#This Row],[Amount]] -> 964.34 | E89: =IFERROR(INDEX([1]Lookup!$B$2:$C$5,MATCH(RIGHT(TRIM(Table1[[#This Row],[Description]]),4),[1]Lookup!$B$2:$B$5,0),2),"") ->  | F89: AGG | I89: -
A90: 2022-09-14 | B90: PEREGRINE AVIONI DES:QUICKBOOKS ID:375020979 INDN:AVIAGLOBAL GROUP, LLC CO ID:1722616653 PPD | C90: 3000 | D90: =D89+Table1[[#This Row],[Amount]] -> 3964.34 | E90: =IFERROR(INDEX([1]Lookup!$B$2:$C$5,MATCH(RIGHT(TRIM(Table1[[#This Row],[Description]]),4),[1]Lookup!$B$2:$B$5,0),2),"") -> 
A91: 2022-09-14 | B91: STAMPS.COM 09/14 PURCHASE 855-608-2677 CA DEBIT CARD *7411 | C91: -17.99 | D91: =D90+Table1[[#This Row],[Amount]] -> 3946.35 | E91: =IFERROR(INDEX([1]Lookup!$B$2:$C$5,MATCH(RIGHT(TRIM(Table1[[#This Row],[Description]]),4),[1]Lookup!$B$2:$B$5,0),2),"") -> LRC | F91: AGG | G91: Stamps | H91: 221020 - LRC ADS_BG ER Mastercard 12-2022 | I91: - | J91: 220914 - Stamps dot com.pdf
A92: 2022-09-19 | B92: MAILCHIMP *MISC 09/18 PURCHASE MAILCHIMP.COM GA DEBIT CARD *7411 | C92: -11.62 | D92: =D91+Table1[[#This Row],[Amount]] -> 3934.73 | E92: =IFERROR(INDEX([1]Lookup!$B$2:$C$5,MATCH(RIGHT(TRIM(Table1[[#This Row],[Description]]),4),[1]Lookup!$B$2:$B$5,0),2),"") -> LRC | F92: AGG | G92: Mailchimp | H92: 221020 - LRC ADS_BG ER Mastercard 12-2022 | I92: - | J92: 220918 - AGG - Mailchimp Essentials MC16627250.pdf
A93: 2022-09-20 | B93: MailChimp 09/20 PURCHASE Atlanta GA DEBIT CARD *7411 | C93: -59 | D93: =D92+Table1[[#This Row],[Amount]] -> 3875.73 | E93: =IFERROR(INDEX([1]Lookup!$B$2:$C$5,MATCH(RIGHT(TRIM(Table1[[#This Row],[Description]]),4),[1]Lookup!$B$2:$B$5,0),2),"") -> LRC | F93: Peregrine | G93: Mailchimp | H93: 221020 - LRC ADS_BG ER Peregrine Billable 13-2022 | I93: 015-22 | J93: 220920 - Peregrine - Mailchimp Essentials MC16642305.pdf
A94: 2022-10-03 | B94: Monthly Fee Business Adv Relationship | C94: -29.95 | D94: =D93+Table1[[#This Row],[Amount]] -> 3845.78 | E94: =IFERROR(INDEX([1]Lookup!$B$2:$C$5,MATCH(RIGHT(TRIM(Table1[[#This Row],[Description]]),4),[1]Lookup!$B$2:$B$5,0),2),"") ->  | F94: AGG | I94: -
A95: 2022-10-06 | B95: DOWNLOAD-MONITOR. 10/06 PURCHASE BUCURESTI DEBIT CARD *7429 | C95: -159 | D95: =D94+Table1[[#This Row],[Amount]] -> 3686.78 | E95: =IFERROR(INDEX([1]Lookup!$B$2:$C$5,MATCH(RIGHT(TRIM(Table1[[#This Row],[Description]]),4),[1]Lookup!$B$2:$B$5,0),2),"") -> FWC | F95: Peregrine | H95: 221201 - FWC ER Peregrine Billable EOY-2022 | I95: 018-22 | J95: Peregrine - Download Monitor Invoice-3198.pdf
A96: 2022-10-06 | B96: INTERNATIONAL TRANSACTION FEE 10/06 DOWNLOAD-MONITOR. BUCURESTI DEBIT CARD *7429 | C96: -4.77 | D96: =D95+Table1[[#This Row],[Amount]] -> 3682.01 | E96: =IFERROR(INDEX([1]Lookup!$B$2:$C$5,MATCH(RIGHT(TRIM(Table1[[#This Row],[Description]]),4),[1]Lookup!$B$2:$B$5,0),2),"") -> FWC | F96: Peregrine | H96: 221201 - FWC ER Peregrine Billable EOY-2022 | I96: 018-22 | J96: 221006 - INTERNATIONAL TRANSACTION FEE DOWNLOAD-MONITOR
A97: 2022-10-17 | B97: STAMPS.COM 10/14 PURCHASE 855-608-2677 CA DEBIT CARD *7411 | C97: -17.99 | D97: =D96+Table1[[#This Row],[Amount]] -> 3664.02 | E97: =IFERROR(INDEX([1]Lookup!$B$2:$C$5,MATCH(RIGHT(TRIM(Table1[[#This Row],[Description]]),4),[1]Lookup!$B$2:$B$5,0),2),"") -> LRC | F97: AGG | G97: Stamps | H97: 221020 - LRC ADS_BG ER Mastercard 12-2022 | I97: - | J97: 221017 - Stamps dot com.pdf
A98: 2022-10-19 | B98: MAILCHIMP *MISC 10/18 PURCHASE MAILCHIMP.COM GA DEBIT CARD *7411 | C98: -11.62 | D98: =D97+Table1[[#This Row],[Amount]] -> 3652.4 | E98: =IFERROR(INDEX([1]Lookup!$B$2:$C$5,MATCH(RIGHT(TRIM(Table1[[#This Row],[Description]]),4),[1]Lookup!$B$2:$B$5,0),2),"") -> LRC | F98: AGG | G98: Mailchimp | H98: 221020 - LRC ADS_BG ER Mastercard 12-2022 | I98: - | J98: 221018 - AGG - Mailchimp Essentials MC16858121.pdf
A99: 2022-10-20 | B99: MailChimp 10/20 PURCHASE Atlanta GA DEBIT CARD *7411 | C99: -59 | D99: =D98+Table1[[#This Row],[Amount]] -> 3593.4 | E99: =IFERROR(INDEX([1]Lookup!$B$2:$C$5,MATCH(RIGHT(TRIM(Table1[[#This Row],[Description]]),4),[1]Lookup!$B$2:$B$5,0),2),"") -> LRC | F99: Peregrine | G99: Mailchimp | H99: 221020 - LRC ADS_BG ER Peregrine Billable 13-2022 | I99: 015-22 | J99: 221020 - Peregrine - Mailchimp Essentials MC16642305.pdf
A100: 2022-10-31 | B100: NATIONAL BUS AVIA 10/28 PURCHASE WASHINGTON DC DEBIT CARD *7411 | C100: -52.5 | D100: =D99+Table1[[#This Row],[Amount]] -> 3540.9 | E100: =IFERROR(INDEX([1]Lookup!$B$2:$C$5,MATCH(RIGHT(TRIM(Table1[[#This Row],[Description]]),4),[1]Lookup!$B$2:$B$5,0),2),"") -> LRC | F100: AGG | H100: 221201 - LRC ADS_BG ER Mastercard 15-2022 | I100: - | J100: 221028 - NBAA Affilliated Prof Membership 000430626.pdf
A101: 2022-11-01 | B101: Monthly Fee Business Adv Relationship | C101: -29.95 | D101: =D100+Table1[[#This Row],[Amount]] -> 3510.95 | E101: =IFERROR(INDEX([1]Lookup!$B$2:$C$5,MATCH(RIGHT(TRIM(Table1[[#This Row],[Description]]),4),[1]Lookup!$B$2:$B$5,0),2),"") ->  | F101: AGG | I101: -
A102: 2022-11-02 | B102: PEREGRINE AVIONI DES:QUICKBOOKS ID:375020979 INDN:AVIAGLOBAL GROUP, LLC CO ID:1722616653 PPD | C102: 2000 | D102: =D101+Table1[[#This Row],[Amount]] -> 5510.95 | E102: =IFERROR(INDEX([1]Lookup!$B$2:$C$5,MATCH(RIGHT(TRIM(Table1[[#This Row],[Description]]),4),[1]Lookup!$B$2:$B$5,0),2),"") -> 
A103: 2022-11-14 | B103: STAMPS.COM 11/13 PURCHASE 855-608-2677 TX DEBIT CARD *7411 | C103: -17.99 | D103: =D102+Table1[[#This Row],[Amount]] -> 5492.96 | E103: =IFERROR(INDEX([1]Lookup!$B$2:$C$5,MATCH(RIGHT(TRIM(Table1[[#This Row],[Description]]),4),[1]Lookup!$B$2:$B$5,0),2),"") -> LRC | F103: AGG | G103: Stamps | H103: 221201 - LRC ADS_BG ER Mastercard 15-2022 | I103: - | J103: 221114 - Stamps dot com.pdf
A104: 2022-11-21 | B104: MAILCHIMP *MISC 11/18 PURCHASE MAILCHIMP.COM GA DEBIT CARD *7411 | C104: -11.62 | D104: =D103+Table1[[#This Row],[Amount]] -> 5481.34 | E104: =IFERROR(INDEX([1]Lookup!$B$2:$C$5,MATCH(RIGHT(TRIM(Table1[[#This Row],[Description]]),4),[1]Lookup!$B$2:$B$5,0),2),"") -> LRC | F104: AGG | G104: Mailchimp | H104: 221201 - LRC ADS_BG ER Mastercard 15-2022 | I104: - | J104: 221118 - AGG - Mailchimp Essentials MC17077641.pdf
A105: 2022-11-21 | B105: MailChimp 11/20 PURCHASE Atlanta GA DEBIT CARD *7411 | C105: -59 | D105: =D104+Table1[[#This Row],[Amount]] -> 5422.34 | E105: =IFERROR(INDEX([1]Lookup!$B$2:$C$5,MATCH(RIGHT(TRIM(Table1[[#This Row],[Description]]),4),[1]Lookup!$B$2:$B$5,0),2),"") -> LRC | F105: Peregrine | G105: Mailchimp | H105: 221201 - LRC ADS_BG ER Peregrine Billable 14-2022 | I105: 017-22 | J105: 221120 - Peregrine - Mailchimp Essentials MC17092309.pdf
A106: 2022-11-21 | B106: INMOTIONHOSTING.C 11/20 PURCHASE 888-3214678 CA DEBIT CARD *7429 | C106: -119.99 | D106: =D105+Table1[[#This Row],[Amount]] -> 5302.35 | E106: =IFERROR(INDEX([1]Lookup!$B$2:$C$5,MATCH(RIGHT(TRIM(Table1[[#This Row],[Description]]),4),[1]Lookup!$B$2:$B$5,0),2),"") -> FWC | F106: AGG | H106: 221201 - FWC ER Mastercard Dec-2022 | I106: - | J106: AGG - InMotion Hosting Receipt - IMH-314-144898-100.pdf
A107: 2022-11-28 | B107: INMOTIONHOSTING.C 11/25 PURCHASE 888-3214678 CA DEBIT CARD *7429 | C107: -479.85 | D107: =D106+Table1[[#This Row],[Amount]] -> 4822.5 | E107: =IFERROR(INDEX([1]Lookup!$B$2:$C$5,MATCH(RIGHT(TRIM(Table1[[#This Row],[Description]]),4),[1]Lookup!$B$2:$B$5,0),2),"") -> FWC | F107: Peregrine | H107: 221201 - FWC ER Peregrine Billable EOY-2022 | I107: 018-22 | J107: Peregrine - InMotion Hosting - Receipt - IMH-414-1451828-5.pdf
A108: 2022-12-01 | B108: Monthly Fee Business Adv Relationship | C108: -29.95 | D108: =D107+Table1[[#This Row],[Amount]] -> 4792.55 | E108: =IFERROR(INDEX([1]Lookup!$B$2:$C$5,MATCH(RIGHT(TRIM(Table1[[#This Row],[Description]]),4),[1]Lookup!$B$2:$B$5,0),2),"") ->  | F108: AGG | I108: -
A109: 2022-12-09 | B109: PEREGRINE AVIONI DES:QUICKBOOKS ID:375020979 INDN:AVIAGLOBAL GROUP, LLC CO ID:1722616653 PPD | C109: 2000 | D109: =D108+Table1[[#This Row],[Amount]] -> 6792.55 | E109: =IFERROR(INDEX([1]Lookup!$B$2:$C$5,MATCH(RIGHT(TRIM(Table1[[#This Row],[Description]]),4),[1]Lookup!$B$2:$B$5,0),2),"") -> 
A110: 2022-12-14 | B110: STAMPS.COM 12/13 PURCHASE 855-608-2677 TX DEBIT CARD *7411 | C110: -17.99 | D110: =D109+Table1[[#This Row],[Amount]] -> 6774.56 | E110: =IFERROR(INDEX([1]Lookup!$B$2:$C$5,MATCH(RIGHT(TRIM(Table1[[#This Row],[Description]]),4),[1]Lookup!$B$2:$B$5,0),2),"") -> LRC | F110: AGG | G110: Stamps | H110: 221201 - LRC ADS_BG ER Mastercard 15-2022 | I110: - | J110: 221214 - Stamps dot com.pdf
A111: 2022-12-19 | B111: INMOTIONHOSTING.C 12/16 PURCHASE 888-3214678 CA DEBIT CARD *7429 | C111: -39.58 | D111: =D110+Table1[[#This Row],[Amount]] -> 6734.98 | E111: =IFERROR(INDEX([1]Lookup!$B$2:$C$5,MATCH(RIGHT(TRIM(Table1[[#This Row],[Description]]),4),[1]Lookup!$B$2:$B$5,0),2),"") -> FWC | F111: AGG | H111: 221226 - FWC ER Mastercard EOY-2022 | I111: -
A112: 2022-12-19 | B112: MAILCHIMP *MISC 12/18 PURCHASE MAILCHIMP.COM GA DEBIT CARD *7411 | C112: -11.62 | D112: =D111+Table1[[#This Row],[Amount]] -> 6723.36 | E112: =IFERROR(INDEX([1]Lookup!$B$2:$C$5,MATCH(RIGHT(TRIM(Table1[[#This Row],[Description]]),4),[1]Lookup!$B$2:$B$5,0),2),"") -> LRC | F112: AGG | G112: Mailchimp | H112: 221223 - LRC ADS_BG ER Mastercard 16-2022 | I112: - | J112: 221218 - AGG - Mailchimp Essentials MC17295205.pdf
A113: 2022-12-20 | B113: PEREGRINE AVIONI DES:QUICKBOOKS ID:375020979 INDN:AVIAGLOBAL GROUP, LLC CO ID:1722616653 PPD | C113: 7063.61 | D113: =D112+Table1[[#This Row],[Amount]] -> 13786.97 | E113: =IFERROR(INDEX([1]Lookup!$B$2:$C$5,MATCH(RIGHT(TRIM(Table1[[#This Row],[Description]]),4),[1]Lookup!$B$2:$B$5,0),2),"") -> 
A114: 2022-12-20 | B114: MailChimp 12/20 PURCHASE Atlanta GA DEBIT CARD *7411 | C114: -59 | D114: =D113+Table1[[#This Row],[Amount]] -> 13727.97 | E114: =IFERROR(INDEX([1]Lookup!$B$2:$C$5,MATCH(RIGHT(TRIM(Table1[[#This Row],[Description]]),4),[1]Lookup!$B$2:$B$5,0),2),"") -> LRC | F114: Peregrine | G114: Mailchimp | H114: 221223 - LRC ADS_BG ER Peregrine Billable 17-2022 | I114: - | J114: 221220 - Peregrine - Mailchimp Essentials MC17309841.pdf
A115: 2022-12-22 | B115: TRANSFER AVIAGLOBAL GROUP, LL:ADS-B Global LLC Confirmation# 0273896038 | C115: -3300 | D115: =D114+Table1[[#This Row],[Amount]] -> 10427.97 | E115: =IFERROR(INDEX([1]Lookup!$B$2:$C$5,MATCH(RIGHT(TRIM(Table1[[#This Row],[Description]]),4),[1]Lookup!$B$2:$B$5,0),2),"") -> 
A116: 2022-12-22 | B116: TRANSFER AVIAGLOBAL GROUP, LL:Forrest Colliver Confirmation# 0273906671 | C116: -3300 | D116: =D115+Table1[[#This Row],[Amount]] -> 7127.97 | E116: =IFERROR(INDEX([1]Lookup!$B$2:$C$5,MATCH(RIGHT(TRIM(Table1[[#This Row],[Description]]),4),[1]Lookup!$B$2:$B$5,0),2),"") -> 
A117: 2022-12-22 | B117: Online Banking Transfer Conf# fr8bmzdeg; AERO BUSINESS DEVELOPEMENT LLC | C117: -3300 | D117: =D116+Table1[[#This Row],[Amount]] -> 3827.97 | E117: =IFERROR(INDEX([1]Lookup!$B$2:$C$5,MATCH(RIGHT(TRIM(Table1[[#This Row],[Description]]),4),[1]Lookup!$B$2:$B$5,0),2),"") -> 
A118: 2022-12-23 | B118: TRANSFER AVIAGLOBAL GROUP, LL:Forrest Colliver Confirmation# 0281150631 | C118: -1549.3 | D118: =D117+Table1[[#This Row],[Amount]] -> 2278.67 | E118: =IFERROR(INDEX([1]Lookup!$B$2:$C$5,MATCH(RIGHT(TRIM(Table1[[#This Row],[Description]]),4),[1]Lookup!$B$2:$B$5,0),2),"") -> 
A119: 2022-12-23 | B119: TRANSFER AVIAGLOBAL GROUP, LL:ADS-B Global LLC Confirmation# 1581367783 | C119: -70.62 | D119: =D118+Table1[[#This Row],[Amount]] -> 2208.05 | E119: =IFERROR(INDEX([1]Lookup!$B$2:$C$5,MATCH(RIGHT(TRIM(Table1[[#This Row],[Description]]),4),[1]Lookup!$B$2:$B$5,0),2),"") -> 
A120: 2022-12-23 | B120: External transfer fee - 3 Day - 12/22/2022 Confirmation: 418383038 | C120: -1 | D120: =D119+Table1[[#This Row],[Amount]] -> 2207.05 | E120: =IFERROR(INDEX([1]Lookup!$B$2:$C$5,MATCH(RIGHT(TRIM(Table1[[#This Row],[Description]]),4),[1]Lookup!$B$2:$B$5,0),2),"") ->  | F120: AGG
A121: 2022-12-23 | B121: External transfer fee - 3 Day - 12/22/2022 Confirmation: 418383332 | C121: -1 | D121: =D120+Table1[[#This Row],[Amount]] -> 2206.05 | E121: =IFERROR(INDEX([1]Lookup!$B$2:$C$5,MATCH(RIGHT(TRIM(Table1[[#This Row],[Description]]),4),[1]Lookup!$B$2:$B$5,0),2),"") ->  | F121: AGG
A122: 2022-12-27 | B122: External transfer fee - Next Day - 12/23/2022 Confirmation: 418570494 | C122: -5 | D122: =D121+Table1[[#This Row],[Amount]] -> 2201.05 | E122: =IFERROR(INDEX([1]Lookup!$B$2:$C$5,MATCH(RIGHT(TRIM(Table1[[#This Row],[Description]]),4),[1]Lookup!$B$2:$B$5,0),2),"") ->  | F122: AGG
A123: 2022-12-27 | B123: External transfer fee - 3 Day - 12/23/2022 Confirmation: 418577030 | C123: -1 | D123: =D122+Table1[[#This Row],[Amount]] -> 2200.05 | E123: =IFERROR(INDEX([1]Lookup!$B$2:$C$5,MATCH(RIGHT(TRIM(Table1[[#This Row],[Description]]),4),[1]Lookup!$B$2:$B$5,0),2),"") ->  | F123: AGG
